{"text_format":"1","workbook":"xlsx","n_sheets":20,"sheets":["Usage","Choix initiaux","Caractéristiques","Compétences","Matériel","Modele-Recto","Valeurs-Recto","Modele-Verso","Valeurs-Verso","Fichiers","Taille","Compétence par défaut","Jeunesse","Espèce","Métiers","Liste-Contacts","Liste-Equipement","Carac. Min","Carac. Moy","Carac. Max"],"not_rendered":{"charts":1,"images":0,"macros":1,"external_links":0,"defined_names":0,"comments":5,"pivot_tables":0},"unopened":[],"bounds":{"document_bytes":16777216,"sheet_cells":100000,"rows_first":2000,"rows_last":500,"rows_between":2000,"halvings":0,"cell_chars":16384,"cell_head_chars":4096},"cells_cut":0,"cells_raw":0,"read":"whole","date_system":"1900"}

{"sheet":"Usage","index":0,"n_rows":16,"n_cols":3,"rows_kept":16,"cut":false,"hidden":false,"merged":[[13,1,15,1]]}
["Etape","Feuille (onglets verts)","Procédure"]
["Choix initiaux","Choix initiaux","S'imaginer le personnage, se le représenter : forces, faiblesses, habitudes, manière d'être, etc...\nChoisir son espèce, son métier, son origine (planète, station, vaisseau nomade, état, faction, etc…) et lui donner un nom\nNoter ces informations dans les cases vertes de la feuille \"Choix initiaux\""]
["Tirage des caractéristiques","Caractéristiques","Tirer 10 fois 2D4 et n'en garder que les 8 tirages les plus hauts\nLes affecter aux caractéristiques selon l'image que l'on se fait de son personnage et les inscrire dans la zone verte de la feuille \"Caractéristiques\"\nLe tableau donne pour chaque espèce les caractéristiques résultant de ce tirage, ainsi que les valeurs qui en sont dérivées"]
["Compétences de jeunesse","Compétences","Affecter des % aux deux compétences marquées en vert dans la colonne \"Jeunesse\"\nLes compétences Culture() et Langue() ayant des spécialités, choisir celles-ci et les marquer dans les cases correspondantes vertes\nLes totaux en bas de colonne passeront en vert lorsque les nombres de compétences et de points affectés seront bons"]
["Compétences d'espèce","Compétences","Affecter des % à des compétences choisies parmi celles marquées en vert dans la colonne portant en titre le nom de l'espèce choisie\nPour les compétences ayant des spécialités, choisir celles-ci et les marquer dans les cases vertes correspondantes\nLes totaux en bas de colonne passeront en vert lorsque les nombres de compétences et de points affectés seront bons"]
["Compétences de métier","Compétences","Affecter des % à des compétences choisies parmi celles marquées en vert dans la colonne portant en titre le nom du métier choisi\nPour les compétences ayant des spécialités, choisir celles-ci et les marquer dans les cases vertes correspondantes\nLes totaux en bas de colonne passeront en vert lorsque les nombres de compétences et de points affectés seront bons"]
["Compétences libres","Compétences","Affecter des % à des compétences de votre choix, dans la colonne \"Libre\"\nPour les compétences ayant des spécialités, choisir celles-ci et les marquer dans les cases vertes correspondantes\nLes totaux en bas de colonne passeront en vert lorsque les nombres de compétences et de points affectés seront bons"]
["Historique et contacts","Compétences","Imaginer l'historique et les contacts de votre personnage et les inscrire dans les cases prévues à cet effet, dont la largeur donne une idée de la longueur possible sur chaque ligne. Générer le fichier image SVG est à ce jour la seule manière de vérifier que les lignes ne débordent pas du cadre. Une vérification automatique est prévue pour une version future.\nHistorique : un espace de 7 lignes est prévu.\nContacts : 5 lignes sont prévues, une par contact. Indiquer le nom, la profession, l'espèce et l'origine (planète, station ou faction), puis une courte description de la relation liant le personnage et son contact. Dans une version future, il est prévu de réaliser un système de choix parmi une liste de contacts préexistants. Le joueur n'aurait alors qu'à ajouter la description du lien entre son personnage et le contact choisi."]
["Matériels et implants","Valeurs-Recto\nValeurs-Verso","Choisir les matériels et les implants. Actuellement, les valeurs sont à inscrire à la main dans les onglets \"Valeur-Recto\" et  \"Valeur-Verso\". Il est prévu d'ajouter dans une prochaine version un système de choix dans des listes, ainsi que la gestion du nombre de matériel et d'implants et le report automatique des caractéristiques des armes au recto."]
["Création de la feuille de personnage","Usage / Compétences / \nValeurs-Verso / Fichiers","Dans l'une des feuilles \"Usage\", \"Fichiers\", \"Compétences\" ou \"Valeurs-verso\", cliquer sur le bouton \"Créer la feuille de personnage au format image SVG\"\nFacultatif : si nécessaire, renseigner les noms de fichiers dans la feuille \"Fichiers\"\n        - Par défaut, fichier modèle : Persos-<version>-Modele-Recto.svg et Persos-<version>-Modele-Verso.svg\n        - Par défaut, nom du fichier feuille de perso : <Nom du fichier Excel>-Recto.svg et <Nom du fichier Excel>-Verso.svg"]
[]
["Couleur des onglets"]
["Guide d'utilisation"]
["Remplir uniquement les cellules vertes","Non encore utilisable dans cette version"]
["Calculs internes, ne pas toucher"]
["Pour information, ne pas toucher"]

{"sheet":"Choix initiaux","index":1,"n_rows":14,"n_cols":1,"rows_kept":14,"cut":false,"hidden":false,"merged":[]}
["Nom"]
["Ant'AkaR H'alk"]
[]
["Joueur"]
["_ _ _ _ _ _ _ _ _ _ _ _ _ _ _ _ _ _ _ _"]
[]
["Espèce"]
["K'Rinn"]
[]
["Métier"]
["Détective"]
[]
["Origine"]
["K'Tilk'Elh, Secession de Ka'Ralt"]

{"sheet":"Caractéristiques","index":2,"n_rows":17,"n_cols":12,"rows_kept":17,"cut":false,"hidden":false,"merged":[]}
["Caractéristique","2D4 (2-8)","Changeforme","Humain","K'Rinn","Marionnettiste","Rith","Sshaad",null,"Porteur","Porteur","Porteur"]
["TAIlle",4,{"$f":"ROUNDUP(8+$B2*1.5,0)","v":14},{"$f":"8+$B2*1","v":12},{"$f":"6+$B2*1","v":10},{"$f":"ROUNDUP(1+$B2/2,0)","v":3},{"$f":"17+$B2*1","v":21},{"$f":"9+$B2*1","v":13}]
["APParence",3,{"$f":"($B3+7)*1","v":10},10,10,10,10,10]
["DEXtérité",5,{"$f":"($B4+7)*1","v":12},{"$f":"($B4+7)*1","v":12},{"$f":"($B4+10)*1","v":15},{"$f":"($B4+8)*1","v":13},{"$f":"($B4+4)*1","v":9},{"$f":"($B4+4)*1","v":9}]
["FORce",3,{"$f":"($B5+7)*1","v":10},{"$f":"($B5+10)*1","v":13},{"$f":"($B5+4)*1","v":7},{"$f":"ROUNDUP(($B5+2)/2,0)","v":3},{"$f":"($B5+16)*1","v":19},{"$f":"($B5+10)*1","v":13}]
["CONstitution",2,{"$f":"($B6+7)*1","v":9},{"$f":"($B6+4)*1","v":6},{"$f":"($B6+4)*1","v":6},{"$f":"($B6+4)*1","v":6},{"$f":"($B6+10)*1","v":12},{"$f":"($B6+10)*1","v":12}]
["INTelligence",7,{"$f":"($B7+7)*1","v":14},{"$f":"($B7+10)*1","v":17},{"$f":"($B7+10)*1","v":17},{"$f":"($B7+13)*1","v":20},{"$f":"($B7+7)*1","v":14},{"$f":"($B7+5)*1","v":12}]
["PERception",8,5,{"$f":"($B8+7)*1","v":15},{"$f":"($B8+7)*1","v":15},{"$f":"($B8+10)*1","v":18},{"$f":"($B8+8)*1","v":16},{"$f":"($B8+11)*1","v":19}]
["VOLonté",5,{"$f":"($B9+7)*1","v":12},{"$f":"($B9+4)*1","v":9},{"$f":"($B9+7)*1","v":12},{"$f":"($B9+13)*1","v":18},{"$f":"($B9+10)*1","v":15},{"$f":"($B9+10)*1","v":15}]
[]
["Points de Vie",null,{"$f":"ROUNDUP((C2+C6)/2,0)","v":12},9,8,5,17,13,null,{"$f":"ROUNDUP((J2+J6)/2,0)","v":0},0,0]
["Initiative",null,{"$f":"C4+10","v":22},22,25,23,19,19,null,{"$f":"J4+10","v":10},10,10]
["Bonus aux dégâts",null,{"$f":"LOOKUP(C5+C2,{2;11;17;25;33;41;57;100},{\"0\";\"+1D2\";\"+1D4\";\"+1D6\";\"+2D4\";\"+2D6\";\"+3D6\"})","v":"+1D4"},{"$f":"LOOKUP(D5+D2,{2;11;17;25;33;41;57;100},{\"0\";\"+1D2\";\"+1D4\";\"+1D6\";\"+2D4\";\"+2D6\";\"+3D6\"})","v":"+1D6"},{"$f":"LOOKUP(E5+E2,{2;11;17;25;33;41;57;100},{\"0\";\"+1D2\";\"+1D4\";\"+1D6\";\"+2D4\";\"+2D6\";\"+3D6\"})","v":"+1D4"},{"$f":"LOOKUP(F5+F2,{2;11;17;25;33;41;57;100},{\"Aucun\";\"+1D2\";\"+1D4\";\"+1D6\";\"+2D4\";\"+2D6\";\"+3D6\"})","v":"Aucun"},{"$f":"LOOKUP(G5+G2,{2;11;17;25;33;41;57;100},{\"0\";\"+1D2\";\"+1D4\";\"+1D6\";\"+2D4\";\"+2D6\";\"+3D6\"})","v":"+2D4"},{"$f":"LOOKUP(H5+H2,{2;11;17;25;33;41;57;100},{\"0\";\"+1D2\";\"+1D4\";\"+1D6\";\"+2D4\";\"+2D6\";\"+3D6\"})","v":"+1D6"},null,{"$f":"LOOKUP(J5+J2,{2;11;17;25;33;41;57;100},{\"0\";\"+1D2\";\"+1D4\";\"+1D6\";\"+2D4\";\"+2D6\";\"+3D6\"})","v":{"$error":"#N/A"}},{"$f":"LOOKUP(K5+K2,{2;11;17;25;33;41;57;100},{\"0\";\"+1D2\";\"+1D4\";\"+1D6\";\"+2D4\";\"+2D6\";\"+3D6\"})","v":{"$error":"#N/A"}},{"$f":"LOOKUP(L5+L2,{2;11;17;25;33;41;57;100},{\"0\";\"+1D2\";\"+1D4\";\"+1D6\";\"+2D4\";\"+2D6\";\"+3D6\"})","v":{"$error":"#N/A"}}]
["Armes naturelles",null,"1D4","1D4+2","1D4","1D2","3D4+2","2D4+2"]
["Armure naturelle",null,1,1,1,0,2,2]
["Masse (kg)",null,{"$f":"0.5*C2^2","v":98},{"$f":"0.5*D2^2","v":72},50,4.5,220.5,84.5,null,{"$f":"0.5*J2^2","v":0},0,0]
[null,{"$f":"SUM(B2:B9)","v":37}]

{"sheet":"Compétences","index":3,"n_rows":43,"n_cols":13,"rows_kept":43,"cut":false,"hidden":false,"merged":[[26,0,33,0],[34,0,40,0],[1,0,12,0],[13,0,15,0],[16,0,19,0],[20,0,25,0]]}
["Domaine","Compétence","Spécialité","Base","Jeunesse",{"$f":"'Choix initiaux'!A8","v":"K'Rinn"},{"$f":"'Choix initiaux'!A11","v":"Détective"},"Libre","Points","Modifiées","Total","Niveau"]
["Interaction",{"$f":"'Compétence par défaut'!B2","v":"Baratin"},null,{"$f":"IF(SUM(CHOOSE(LOOKUP($F$1,Caractéristiques!$C$1:$H$1,{1;2;3;4;5;6}), 'Compétence par défaut'!$E2,'Compétence par défaut'!$F2,'Compétence par défaut'!$G2,'Compétence par défaut'!$H2,'Compétence par défaut'!$I2,'Compétence par défaut'!$J2))=0,'Compétence par défaut'!$D2,CHOOSE(LOOKUP($F$1,Caractéristiques!$C$1:$H$1,{1;2;3;4;5;6}), 'Compétence par défaut'!$E2,'Compétence par défaut'!$F2,'Compétence par défaut'!$G2,'Compétence par défaut'!$H2,'Compétence par défaut'!$I2,'Compétence par défaut'!$J2))","v":5},null,null,null,null,{"$f":"IF(SUM(E2:H2)=0,\"\",SUM(E2:H2))","v":""},{"$f":"IF(SUM(I2)=0,\"\",I2+D2)","v":""},{"$f":"SUM(D2,I2)","v":5},{"$f":"LOOKUP(K2,{0;29;49;79;99},{\"\";0.1;0.2;0.5;1})","v":""},"Historique"]
[null,{"$f":"'Compétence par défaut'!B3","v":"Commandement"},null,{"$f":"IF(SUM(CHOOSE(LOOKUP($F$1,Caractéristiques!$C$1:$H$1,{1;2;3;4;5;6}), 'Compétence par défaut'!$E3,'Compétence par défaut'!$F3,'Compétence par défaut'!$G3,'Compétence par défaut'!$H3,'Compétence par défaut'!$I3,'Compétence par défaut'!$J3))=0,'Compétence par défaut'!$D3,CHOOSE(LOOKUP($F$1,Caractéristiques!$C$1:$H$1,{1;2;3;4;5;6}), 'Compétence par défaut'!$E3,'Compétence par défaut'!$F3,'Compétence par défaut'!$G3,'Compétence par défaut'!$H3,'Compétence par défaut'!$I3,'Compétence par défaut'!$J3))","v":5},null,null,null,null,"","",5,{"$f":"LOOKUP(K3,{0;29;49;79;99},{\"\";0.1;0.2;0.5;1})","v":""},"Eclose sur un monde trop froid, Ant’AkaR a passé son enfance à rêver de terraformation. Après sa "]
[null,{"$f":"'Compétence par défaut'!B4","v":"Culture ()"},"Ka'Ralt",{"$f":"IF(SUM(CHOOSE(LOOKUP($F$1,Caractéristiques!$C$1:$H$1,{1;2;3;4;5;6}), 'Compétence par défaut'!$E4,'Compétence par défaut'!$F4,'Compétence par défaut'!$G4,'Compétence par défaut'!$H4,'Compétence par défaut'!$I4,'Compétence par défaut'!$J4))=0,'Compétence par défaut'!$D4,CHOOSE(LOOKUP($F$1,Caractéristiques!$C$1:$H$1,{1;2;3;4;5;6}), 'Compétence par défaut'!$E4,'Compétence par défaut'!$F4,'Compétence par défaut'!$G4,'Compétence par défaut'!$H4,'Compétence par défaut'!$I4,'Compétence par défaut'!$J4))","v":15},25,null,null,null,25,40,40,{"$f":"LOOKUP(K4,{0;29;49;79;99},{\"\";0.1;0.2;0.5;1})","v":0.1},"métamorphose, trop frêle pour la rude vie de terrain, elle a été employée dans la diplomatie. Lors "]
[null,{"$f":"'Compétence par défaut'!B5","v":"Culture ()"},"Bureaucratie",{"$f":"IF(SUM(CHOOSE(LOOKUP($F$1,Caractéristiques!$C$1:$H$1,{1;2;3;4;5;6}), 'Compétence par défaut'!$E5,'Compétence par défaut'!$F5,'Compétence par défaut'!$G5,'Compétence par défaut'!$H5,'Compétence par défaut'!$I5,'Compétence par défaut'!$J5))=0,'Compétence par défaut'!$D5,CHOOSE(LOOKUP($F$1,Caractéristiques!$C$1:$H$1,{1;2;3;4;5;6}), 'Compétence par défaut'!$E5,'Compétence par défaut'!$F5,'Compétence par défaut'!$G5,'Compétence par défaut'!$H5,'Compétence par défaut'!$I5,'Compétence par défaut'!$J5))","v":5},null,null,40,null,40,45,45,{"$f":"LOOKUP(K5,{0;29;49;79;99},{\"\";0.1;0.2;0.5;1})","v":0.1},"des négociations avec les Rithai, elle a déjoué un complot contre l’envoyé de la Rithai Kemae. "]
[null,{"$f":"'Compétence par défaut'!B6","v":"Enseignement"},null,{"$f":"IF(SUM(CHOOSE(LOOKUP($F$1,Caractéristiques!$C$1:$H$1,{1;2;3;4;5;6}), 'Compétence par défaut'!$E6,'Compétence par défaut'!$F6,'Compétence par défaut'!$G6,'Compétence par défaut'!$H6,'Compétence par défaut'!$I6,'Compétence par défaut'!$J6))=0,'Compétence par défaut'!$D6,CHOOSE(LOOKUP($F$1,Caractéristiques!$C$1:$H$1,{1;2;3;4;5;6}), 'Compétence par défaut'!$E6,'Compétence par défaut'!$F6,'Compétence par défaut'!$G6,'Compétence par défaut'!$H6,'Compétence par défaut'!$I6,'Compétence par défaut'!$J6))","v":20},null,null,null,null,"","",20,{"$f":"LOOKUP(K6,{0;29;49;79;99},{\"\";0.1;0.2;0.5;1})","v":""},"Elle s’est alors passionnée pour les enquêtes et a parcouru les espaces rith et humain. Pour sa "]
[null,{"$f":"'Compétence par défaut'!B7","v":"Investigation"},null,{"$f":"IF(SUM(CHOOSE(LOOKUP($F$1,Caractéristiques!$C$1:$H$1,{1;2;3;4;5;6}), 'Compétence par défaut'!$E7,'Compétence par défaut'!$F7,'Compétence par défaut'!$G7,'Compétence par défaut'!$H7,'Compétence par défaut'!$I7,'Compétence par défaut'!$J7))=0,'Compétence par défaut'!$D7,CHOOSE(LOOKUP($F$1,Caractéristiques!$C$1:$H$1,{1;2;3;4;5;6}), 'Compétence par défaut'!$E7,'Compétence par défaut'!$F7,'Compétence par défaut'!$G7,'Compétence par défaut'!$H7,'Compétence par défaut'!$I7,'Compétence par défaut'!$J7))","v":15},null,null,50,null,50,65,65,{"$f":"LOOKUP(K7,{0;29;49;79;99},{\"\";0.1;0.2;0.5;1})","v":0.2},"sécurité, elle y a appris le combat, malgré sa répugnance. Son passé de diplomate, son intelligence "]
[null,{"$f":"'Compétence par défaut'!B8","v":"Langue ()"},"Ka'Raltien",{"$f":"IF(SUM(CHOOSE(LOOKUP($F$1,Caractéristiques!$C$1:$H$1,{1;2;3;4;5;6}), 'Compétence par défaut'!$E8,'Compétence par défaut'!$F8,'Compétence par défaut'!$G8,'Compétence par défaut'!$H8,'Compétence par défaut'!$I8,'Compétence par défaut'!$J8))=0,'Compétence par défaut'!$D8,CHOOSE(LOOKUP($F$1,Caractéristiques!$C$1:$H$1,{1;2;3;4;5;6}), 'Compétence par défaut'!$E8,'Compétence par défaut'!$F8,'Compétence par défaut'!$G8,'Compétence par défaut'!$H8,'Compétence par défaut'!$I8,'Compétence par défaut'!$J8))","v":25},25,null,null,null,25,50,50,{"$f":"LOOKUP(K8,{0;29;49;79;99},{\"\";0.1;0.2;0.5;1})","v":0.2},"vive et ses sens toujours aux aguets lui donnent un avantage dans les enquêtes impliquant plusieurs "]
[null,{"$f":"'Compétence par défaut'!B9","v":"Langue ()"},"Irilia",{"$f":"IF(SUM(CHOOSE(LOOKUP($F$1,Caractéristiques!$C$1:$H$1,{1;2;3;4;5;6}), 'Compétence par défaut'!$E9,'Compétence par défaut'!$F9,'Compétence par défaut'!$G9,'Compétence par défaut'!$H9,'Compétence par défaut'!$I9,'Compétence par défaut'!$J9))=0,'Compétence par défaut'!$D9,CHOOSE(LOOKUP($F$1,Caractéristiques!$C$1:$H$1,{1;2;3;4;5;6}), 'Compétence par défaut'!$E9,'Compétence par défaut'!$F9,'Compétence par défaut'!$G9,'Compétence par défaut'!$H9,'Compétence par défaut'!$I9,'Compétence par défaut'!$J9))","v":20},null,20,null,null,20,40,40,{"$f":"LOOKUP(K9,{0;29;49;79;99},{\"\";0.1;0.2;0.5;1})","v":0.1},"espèces. Elle est basée sur Nouvelle Hong-Kong, aux limites des espaces k'rinn, humain et rith."]
[null,{"$f":"'Compétence par défaut'!B10","v":"Langue ()"},"Mandarin",{"$f":"IF(SUM(CHOOSE(LOOKUP($F$1,Caractéristiques!$C$1:$H$1,{1;2;3;4;5;6}), 'Compétence par défaut'!$E10,'Compétence par défaut'!$F10,'Compétence par défaut'!$G10,'Compétence par défaut'!$H10,'Compétence par défaut'!$I10,'Compétence par défaut'!$J10))=0,'Compétence par défaut'!$D10,CHOOSE(LOOKUP($F$1,Caractéristiques!$C$1:$H$1,{1;2;3;4;5;6}), 'Compétence par défaut'!$E10,'Compétence par défaut'!$F10,'Compétence par défaut'!$G10,'Compétence par défaut'!$H10,'Compétence par défaut'!$I10,'Compétence par défaut'!$J10))","v":15},null,null,30,null,30,45,45,{"$f":"LOOKUP(K10,{0;29;49;79;99},{\"\";0.1;0.2;0.5;1})","v":0.1}]
[null,{"$f":"'Compétence par défaut'!B11","v":"Marchandage"},null,{"$f":"IF(SUM(CHOOSE(LOOKUP($F$1,Caractéristiques!$C$1:$H$1,{1;2;3;4;5;6}), 'Compétence par défaut'!$E11,'Compétence par défaut'!$F11,'Compétence par défaut'!$G11,'Compétence par défaut'!$H11,'Compétence par défaut'!$I11,'Compétence par défaut'!$J11))=0,'Compétence par défaut'!$D11,CHOOSE(LOOKUP($F$1,Caractéristiques!$C$1:$H$1,{1;2;3;4;5;6}), 'Compétence par défaut'!$E11,'Compétence par défaut'!$F11,'Compétence par défaut'!$G11,'Compétence par défaut'!$H11,'Compétence par défaut'!$I11,'Compétence par défaut'!$J11))","v":5},null,null,null,null,"","",5,{"$f":"LOOKUP(K11,{0;29;49;79;99},{\"\";0.1;0.2;0.5;1})","v":""},"Rilathn ud Irilia - Rith - Ambassadeur itinérant Irilia - Lui doit la vie dans l'incident de T'Kell"]
[null,{"$f":"'Compétence par défaut'!B12","v":"Persuasion"},null,{"$f":"IF(SUM(CHOOSE(LOOKUP($F$1,Caractéristiques!$C$1:$H$1,{1;2;3;4;5;6}), 'Compétence par défaut'!$E12,'Compétence par défaut'!$F12,'Compétence par défaut'!$G12,'Compétence par défaut'!$H12,'Compétence par défaut'!$I12,'Compétence par défaut'!$J12))=0,'Compétence par défaut'!$D12,CHOOSE(LOOKUP($F$1,Caractéristiques!$C$1:$H$1,{1;2;3;4;5;6}), 'Compétence par défaut'!$E12,'Compétence par défaut'!$F12,'Compétence par défaut'!$G12,'Compétence par défaut'!$H12,'Compétence par défaut'!$I12,'Compétence par défaut'!$J12))","v":15},null,30,null,null,30,45,45,{"$f":"LOOKUP(K12,{0;29;49;79;99},{\"\";0.1;0.2;0.5;1})","v":0.1},"R’Lef’Kkip – K’Rinn - Marchand et Spatien - Son ancien supérieur sur la station T’Kell"]
[null,{"$f":"'Compétence par défaut'!B13","v":"Stratégie"},null,{"$f":"IF(SUM(CHOOSE(LOOKUP($F$1,Caractéristiques!$C$1:$H$1,{1;2;3;4;5;6}), 'Compétence par défaut'!$E13,'Compétence par défaut'!$F13,'Compétence par défaut'!$G13,'Compétence par défaut'!$H13,'Compétence par défaut'!$I13,'Compétence par défaut'!$J13))=0,'Compétence par défaut'!$D13,CHOOSE(LOOKUP($F$1,Caractéristiques!$C$1:$H$1,{1;2;3;4;5;6}), 'Compétence par défaut'!$E13,'Compétence par défaut'!$F13,'Compétence par défaut'!$G13,'Compétence par défaut'!$H13,'Compétence par défaut'!$I13,'Compétence par défaut'!$J13))","v":5},null,null,null,null,"","",5,{"$f":"LOOKUP(K13,{0;29;49;79;99},{\"\";0.1;0.2;0.5;1})","v":""},"Chang-Li Liang - Humaine - Détective - Son employeur sur la station Nouvelle Hong-Kong"]
["Perception",{"$f":"'Compétence par défaut'!B14","v":"Remarquer"},null,{"$f":"IF(SUM(CHOOSE(LOOKUP($F$1,Caractéristiques!$C$1:$H$1,{1;2;3;4;5;6}), 'Compétence par défaut'!$E14,'Compétence par défaut'!$F14,'Compétence par défaut'!$G14,'Compétence par défaut'!$H14,'Compétence par défaut'!$I14,'Compétence par défaut'!$J14))=0,'Compétence par défaut'!$D14,CHOOSE(LOOKUP($F$1,Caractéristiques!$C$1:$H$1,{1;2;3;4;5;6}), 'Compétence par défaut'!$E14,'Compétence par défaut'!$F14,'Compétence par défaut'!$G14,'Compétence par défaut'!$H14,'Compétence par défaut'!$I14,'Compétence par défaut'!$J14))","v":20},null,null,50,null,50,70,70,{"$f":"LOOKUP(K14,{0;29;49;79;99},{\"\";0.1;0.2;0.5;1})","v":0.2},"R’Lef’Lekt – K’Rinn (Défenseur) - Chasseur de primes - Ennemi depuis T’Kell"]
[null,{"$f":"'Compétence par défaut'!B15","v":"Intuition"},null,{"$f":"IF(SUM(CHOOSE(LOOKUP($F$1,Caractéristiques!$C$1:$H$1,{1;2;3;4;5;6}), 'Compétence par défaut'!$E15,'Compétence par défaut'!$F15,'Compétence par défaut'!$G15,'Compétence par défaut'!$H15,'Compétence par défaut'!$I15,'Compétence par défaut'!$J15))=0,'Compétence par défaut'!$D15,CHOOSE(LOOKUP($F$1,Caractéristiques!$C$1:$H$1,{1;2;3;4;5;6}), 'Compétence par défaut'!$E15,'Compétence par défaut'!$F15,'Compétence par défaut'!$G15,'Compétence par défaut'!$H15,'Compétence par défaut'!$I15,'Compétence par défaut'!$J15))","v":10},null,null,null,null,"","",10,{"$f":"LOOKUP(K15,{0;29;49;79;99},{\"\";0.1;0.2;0.5;1})","v":""},"Navnit Sarraoui - Humain - Enquêteur - Police Stellaire, espace humain - Commanditaire régulier"]
[null,{"$f":"'Compétence par défaut'!B16","v":"Orientation ()"},null,{"$f":"IF(SUM(CHOOSE(LOOKUP($F$1,Caractéristiques!$C$1:$H$1,{1;2;3;4;5;6}), 'Compétence par défaut'!$E16,'Compétence par défaut'!$F16,'Compétence par défaut'!$G16,'Compétence par défaut'!$H16,'Compétence par défaut'!$I16,'Compétence par défaut'!$J16))=0,'Compétence par défaut'!$D16,CHOOSE(LOOKUP($F$1,Caractéristiques!$C$1:$H$1,{1;2;3;4;5;6}), 'Compétence par défaut'!$E16,'Compétence par défaut'!$F16,'Compétence par défaut'!$G16,'Compétence par défaut'!$H16,'Compétence par défaut'!$I16,'Compétence par défaut'!$J16))","v":5},null,null,null,null,"","",5,{"$f":"LOOKUP(K16,{0;29;49;79;99},{\"\";0.1;0.2;0.5;1})","v":""}]
["Dextérité",{"$f":"'Compétence par défaut'!B17","v":"Déguisement"},null,{"$f":"IF(SUM(CHOOSE(LOOKUP($F$1,Caractéristiques!$C$1:$H$1,{1;2;3;4;5;6}), 'Compétence par défaut'!$E17,'Compétence par défaut'!$F17,'Compétence par défaut'!$G17,'Compétence par défaut'!$H17,'Compétence par défaut'!$I17,'Compétence par défaut'!$J17))=0,'Compétence par défaut'!$D17,CHOOSE(LOOKUP($F$1,Caractéristiques!$C$1:$H$1,{1;2;3;4;5;6}), 'Compétence par défaut'!$E17,'Compétence par défaut'!$F17,'Compétence par défaut'!$G17,'Compétence par défaut'!$H17,'Compétence par défaut'!$I17,'Compétence par défaut'!$J17))","v":10},null,null,null,null,"","",10,{"$f":"LOOKUP(K17,{0;29;49;79;99},{\"\";0.1;0.2;0.5;1})","v":""}]
[null,{"$f":"'Compétence par défaut'!B18","v":"Discrétion"},null,{"$f":"IF(SUM(CHOOSE(LOOKUP($F$1,Caractéristiques!$C$1:$H$1,{1;2;3;4;5;6}), 'Compétence par défaut'!$E18,'Compétence par défaut'!$F18,'Compétence par défaut'!$G18,'Compétence par défaut'!$H18,'Compétence par défaut'!$I18,'Compétence par défaut'!$J18))=0,'Compétence par défaut'!$D18,CHOOSE(LOOKUP($F$1,Caractéristiques!$C$1:$H$1,{1;2;3;4;5;6}), 'Compétence par défaut'!$E18,'Compétence par défaut'!$F18,'Compétence par défaut'!$G18,'Compétence par défaut'!$H18,'Compétence par défaut'!$I18,'Compétence par défaut'!$J18))","v":10},null,null,null,null,"","",10,{"$f":"LOOKUP(K18,{0;29;49;79;99},{\"\";0.1;0.2;0.5;1})","v":""}]
[null,{"$f":"'Compétence par défaut'!B19","v":"Dissimulation"},null,{"$f":"IF(SUM(CHOOSE(LOOKUP($F$1,Caractéristiques!$C$1:$H$1,{1;2;3;4;5;6}), 'Compétence par défaut'!$E19,'Compétence par défaut'!$F19,'Compétence par défaut'!$G19,'Compétence par défaut'!$H19,'Compétence par défaut'!$I19,'Compétence par défaut'!$J19))=0,'Compétence par défaut'!$D19,CHOOSE(LOOKUP($F$1,Caractéristiques!$C$1:$H$1,{1;2;3;4;5;6}), 'Compétence par défaut'!$E19,'Compétence par défaut'!$F19,'Compétence par défaut'!$G19,'Compétence par défaut'!$H19,'Compétence par défaut'!$I19,'Compétence par défaut'!$J19))","v":10},null,null,null,null,"","",10,{"$f":"LOOKUP(K19,{0;29;49;79;99},{\"\";0.1;0.2;0.5;1})","v":""}]
[null,{"$f":"'Compétence par défaut'!B20","v":"Illusion"},null,{"$f":"IF(SUM(CHOOSE(LOOKUP($F$1,Caractéristiques!$C$1:$H$1,{1;2;3;4;5;6}), 'Compétence par défaut'!$E20,'Compétence par défaut'!$F20,'Compétence par défaut'!$G20,'Compétence par défaut'!$H20,'Compétence par défaut'!$I20,'Compétence par défaut'!$J20))=0,'Compétence par défaut'!$D20,CHOOSE(LOOKUP($F$1,Caractéristiques!$C$1:$H$1,{1;2;3;4;5;6}), 'Compétence par défaut'!$E20,'Compétence par défaut'!$F20,'Compétence par défaut'!$G20,'Compétence par défaut'!$H20,'Compétence par défaut'!$I20,'Compétence par défaut'!$J20))","v":5},null,null,null,null,"","",5,{"$f":"LOOKUP(K20,{0;29;49;79;99},{\"\";0.1;0.2;0.5;1})","v":""}]
["Physique",{"$f":"'Compétence par défaut'!B21","v":"Pilotage ()"},"Drones",{"$f":"IF(SUM(CHOOSE(LOOKUP($F$1,Caractéristiques!$C$1:$H$1,{1;2;3;4;5;6}), 'Compétence par défaut'!$E21,'Compétence par défaut'!$F21,'Compétence par défaut'!$G21,'Compétence par défaut'!$H21,'Compétence par défaut'!$I21,'Compétence par défaut'!$J21))=0,'Compétence par défaut'!$D21,CHOOSE(LOOKUP($F$1,Caractéristiques!$C$1:$H$1,{1;2;3;4;5;6}), 'Compétence par défaut'!$E21,'Compétence par défaut'!$F21,'Compétence par défaut'!$G21,'Compétence par défaut'!$H21,'Compétence par défaut'!$I21,'Compétence par défaut'!$J21))","v":15},null,null,null,40,40,55,55,{"$f":"LOOKUP(K21,{0;29;49;79;99},{\"\";0.1;0.2;0.5;1})","v":0.2}]
[null,{"$f":"'Compétence par défaut'!B22","v":"Pilotage ()"},null,{"$f":"IF(SUM(CHOOSE(LOOKUP($F$1,Caractéristiques!$C$1:$H$1,{1;2;3;4;5;6}), 'Compétence par défaut'!$E22,'Compétence par défaut'!$F22,'Compétence par défaut'!$G22,'Compétence par défaut'!$H22,'Compétence par défaut'!$I22,'Compétence par défaut'!$J22))=0,'Compétence par défaut'!$D22,CHOOSE(LOOKUP($F$1,Caractéristiques!$C$1:$H$1,{1;2;3;4;5;6}), 'Compétence par défaut'!$E22,'Compétence par défaut'!$F22,'Compétence par défaut'!$G22,'Compétence par défaut'!$H22,'Compétence par défaut'!$I22,'Compétence par défaut'!$J22))","v":15},null,null,null,null,"","",15,{"$f":"LOOKUP(K22,{0;29;49;79;99},{\"\";0.1;0.2;0.5;1})","v":""}]
[null,{"$f":"'Compétence par défaut'!B23","v":"Grimper"},null,{"$f":"IF(SUM(CHOOSE(LOOKUP($F$1,Caractéristiques!$C$1:$H$1,{1;2;3;4;5;6}), 'Compétence par défaut'!$E23,'Compétence par défaut'!$F23,'Compétence par défaut'!$G23,'Compétence par défaut'!$H23,'Compétence par défaut'!$I23,'Compétence par défaut'!$J23))=0,'Compétence par défaut'!$D23,CHOOSE(LOOKUP($F$1,Caractéristiques!$C$1:$H$1,{1;2;3;4;5;6}), 'Compétence par défaut'!$E23,'Compétence par défaut'!$F23,'Compétence par défaut'!$G23,'Compétence par défaut'!$H23,'Compétence par défaut'!$I23,'Compétence par défaut'!$J23))","v":20},null,null,null,null,"","",20,{"$f":"LOOKUP(K23,{0;29;49;79;99},{\"\";0.1;0.2;0.5;1})","v":""}]
[null,{"$f":"'Compétence par défaut'!B24","v":"Lancer"},null,{"$f":"IF(SUM(CHOOSE(LOOKUP($F$1,Caractéristiques!$C$1:$H$1,{1;2;3;4;5;6}), 'Compétence par défaut'!$E24,'Compétence par défaut'!$F24,'Compétence par défaut'!$G24,'Compétence par défaut'!$H24,'Compétence par défaut'!$I24,'Compétence par défaut'!$J24))=0,'Compétence par défaut'!$D24,CHOOSE(LOOKUP($F$1,Caractéristiques!$C$1:$H$1,{1;2;3;4;5;6}), 'Compétence par défaut'!$E24,'Compétence par défaut'!$F24,'Compétence par défaut'!$G24,'Compétence par défaut'!$H24,'Compétence par défaut'!$I24,'Compétence par défaut'!$J24))","v":25},null,null,null,null,"","",25,{"$f":"LOOKUP(K24,{0;29;49;79;99},{\"\";0.1;0.2;0.5;1})","v":""}]
[null,{"$f":"'Compétence par défaut'!B25","v":"Nager"},null,{"$f":"IF(SUM(CHOOSE(LOOKUP($F$1,Caractéristiques!$C$1:$H$1,{1;2;3;4;5;6}), 'Compétence par défaut'!$E25,'Compétence par défaut'!$F25,'Compétence par défaut'!$G25,'Compétence par défaut'!$H25,'Compétence par défaut'!$I25,'Compétence par défaut'!$J25))=0,'Compétence par défaut'!$D25,CHOOSE(LOOKUP($F$1,Caractéristiques!$C$1:$H$1,{1;2;3;4;5;6}), 'Compétence par défaut'!$E25,'Compétence par défaut'!$F25,'Compétence par défaut'!$G25,'Compétence par défaut'!$H25,'Compétence par défaut'!$I25,'Compétence par défaut'!$J25))","v":5},null,null,null,null,"","",5,{"$f":"LOOKUP(K25,{0;29;49;79;99},{\"\";0.1;0.2;0.5;1})","v":""}]
[null,{"$f":"'Compétence par défaut'!B26","v":"Sauter"},null,{"$f":"IF(SUM(CHOOSE(LOOKUP($F$1,Caractéristiques!$C$1:$H$1,{1;2;3;4;5;6}), 'Compétence par défaut'!$E26,'Compétence par défaut'!$F26,'Compétence par défaut'!$G26,'Compétence par défaut'!$H26,'Compétence par défaut'!$I26,'Compétence par défaut'!$J26))=0,'Compétence par défaut'!$D26,CHOOSE(LOOKUP($F$1,Caractéristiques!$C$1:$H$1,{1;2;3;4;5;6}), 'Compétence par défaut'!$E26,'Compétence par défaut'!$F26,'Compétence par défaut'!$G26,'Compétence par défaut'!$H26,'Compétence par défaut'!$I26,'Compétence par défaut'!$J26))","v":25},null,null,null,null,"","",25,{"$f":"LOOKUP(K26,{0;29;49;79;99},{\"\";0.1;0.2;0.5;1})","v":""}]
["Savoirs",{"$f":"'Compétence par défaut'!B27","v":"Art/Artisanat ()"},"Serrurerie",{"$f":"IF(SUM(CHOOSE(LOOKUP($F$1,Caractéristiques!$C$1:$H$1,{1;2;3;4;5;6}), 'Compétence par défaut'!$E27,'Compétence par défaut'!$F27,'Compétence par défaut'!$G27,'Compétence par défaut'!$H27,'Compétence par défaut'!$I27,'Compétence par défaut'!$J27))=0,'Compétence par défaut'!$D27,CHOOSE(LOOKUP($F$1,Caractéristiques!$C$1:$H$1,{1;2;3;4;5;6}), 'Compétence par défaut'!$E27,'Compétence par défaut'!$F27,'Compétence par défaut'!$G27,'Compétence par défaut'!$H27,'Compétence par défaut'!$I27,'Compétence par défaut'!$J27))","v":10},null,null,30,null,30,40,40,{"$f":"LOOKUP(K27,{0;29;49;79;99},{\"\";0.1;0.2;0.5;1})","v":0.1}]
[null,{"$f":"'Compétence par défaut'!B28","v":"Art/Artisanat ()"},"Falsification",{"$f":"IF(SUM(CHOOSE(LOOKUP($F$1,Caractéristiques!$C$1:$H$1,{1;2;3;4;5;6}), 'Compétence par défaut'!$E28,'Compétence par défaut'!$F28,'Compétence par défaut'!$G28,'Compétence par défaut'!$H28,'Compétence par défaut'!$I28,'Compétence par défaut'!$J28))=0,'Compétence par défaut'!$D28,CHOOSE(LOOKUP($F$1,Caractéristiques!$C$1:$H$1,{1;2;3;4;5;6}), 'Compétence par défaut'!$E28,'Compétence par défaut'!$F28,'Compétence par défaut'!$G28,'Compétence par défaut'!$H28,'Compétence par défaut'!$I28,'Compétence par défaut'!$J28))","v":10},null,null,null,30,30,40,40,{"$f":"LOOKUP(K28,{0;29;49;79;99},{\"\";0.1;0.2;0.5;1})","v":0.1}]
[null,{"$f":"'Compétence par défaut'!B29","v":"Évaluer"},null,{"$f":"IF(SUM(CHOOSE(LOOKUP($F$1,Caractéristiques!$C$1:$H$1,{1;2;3;4;5;6}), 'Compétence par défaut'!$E29,'Compétence par défaut'!$F29,'Compétence par défaut'!$G29,'Compétence par défaut'!$H29,'Compétence par défaut'!$I29,'Compétence par défaut'!$J29))=0,'Compétence par défaut'!$D29,CHOOSE(LOOKUP($F$1,Caractéristiques!$C$1:$H$1,{1;2;3;4;5;6}), 'Compétence par défaut'!$E29,'Compétence par défaut'!$F29,'Compétence par défaut'!$G29,'Compétence par défaut'!$H29,'Compétence par défaut'!$I29,'Compétence par défaut'!$J29))","v":5},null,null,null,null,"","",5,{"$f":"LOOKUP(K29,{0;29;49;79;99},{\"\";0.1;0.2;0.5;1})","v":""}]
[null,{"$f":"'Compétence par défaut'!B30","v":"Jeu ()"},null,{"$f":"IF(SUM(CHOOSE(LOOKUP($F$1,Caractéristiques!$C$1:$H$1,{1;2;3;4;5;6}), 'Compétence par défaut'!$E30,'Compétence par défaut'!$F30,'Compétence par défaut'!$G30,'Compétence par défaut'!$H30,'Compétence par défaut'!$I30,'Compétence par défaut'!$J30))=0,'Compétence par défaut'!$D30,CHOOSE(LOOKUP($F$1,Caractéristiques!$C$1:$H$1,{1;2;3;4;5;6}), 'Compétence par défaut'!$E30,'Compétence par défaut'!$F30,'Compétence par défaut'!$G30,'Compétence par défaut'!$H30,'Compétence par défaut'!$I30,'Compétence par défaut'!$J30))","v":10},null,null,null,null,"","",10,{"$f":"LOOKUP(K30,{0;29;49;79;99},{\"\";0.1;0.2;0.5;1})","v":""}]
[null,{"$f":"'Compétence par défaut'!B31","v":"Premiers soins"},null,{"$f":"IF(SUM(CHOOSE(LOOKUP($F$1,Caractéristiques!$C$1:$H$1,{1;2;3;4;5;6}), 'Compétence par défaut'!$E31,'Compétence par défaut'!$F31,'Compétence par défaut'!$G31,'Compétence par défaut'!$H31,'Compétence par défaut'!$I31,'Compétence par défaut'!$J31))=0,'Compétence par défaut'!$D31,CHOOSE(LOOKUP($F$1,Caractéristiques!$C$1:$H$1,{1;2;3;4;5;6}), 'Compétence par défaut'!$E31,'Compétence par défaut'!$F31,'Compétence par défaut'!$G31,'Compétence par défaut'!$H31,'Compétence par défaut'!$I31,'Compétence par défaut'!$J31))","v":5},null,null,null,30,30,35,35,{"$f":"LOOKUP(K31,{0;29;49;79;99},{\"\";0.1;0.2;0.5;1})","v":0.1}]
[null,{"$f":"'Compétence par défaut'!B32","v":"Technologie ()"},null,{"$f":"IF(SUM(CHOOSE(LOOKUP($F$1,Caractéristiques!$C$1:$H$1,{1;2;3;4;5;6}), 'Compétence par défaut'!$E32,'Compétence par défaut'!$F32,'Compétence par défaut'!$G32,'Compétence par défaut'!$H32,'Compétence par défaut'!$I32,'Compétence par défaut'!$J32))=0,'Compétence par défaut'!$D32,CHOOSE(LOOKUP($F$1,Caractéristiques!$C$1:$H$1,{1;2;3;4;5;6}), 'Compétence par défaut'!$E32,'Compétence par défaut'!$F32,'Compétence par défaut'!$G32,'Compétence par défaut'!$H32,'Compétence par défaut'!$I32,'Compétence par défaut'!$J32))","v":10},null,null,null,null,"","",10,{"$f":"LOOKUP(K32,{0;29;49;79;99},{\"\";0.1;0.2;0.5;1})","v":""}]
[null,{"$f":"'Compétence par défaut'!B33","v":"Technologie ()"},null,{"$f":"IF(SUM(CHOOSE(LOOKUP($F$1,Caractéristiques!$C$1:$H$1,{1;2;3;4;5;6}), 'Compétence par défaut'!$E33,'Compétence par défaut'!$F33,'Compétence par défaut'!$G33,'Compétence par défaut'!$H33,'Compétence par défaut'!$I33,'Compétence par défaut'!$J33))=0,'Compétence par défaut'!$D33,CHOOSE(LOOKUP($F$1,Caractéristiques!$C$1:$H$1,{1;2;3;4;5;6}), 'Compétence par défaut'!$E33,'Compétence par défaut'!$F33,'Compétence par défaut'!$G33,'Compétence par défaut'!$H33,'Compétence par défaut'!$I33,'Compétence par défaut'!$J33))","v":10},null,null,null,null,"","",10,{"$f":"LOOKUP(K33,{0;29;49;79;99},{\"\";0.1;0.2;0.5;1})","v":""}]
[null,{"$f":"'Compétence par défaut'!B34","v":"Technologie ()"},null,{"$f":"IF(SUM(CHOOSE(LOOKUP($F$1,Caractéristiques!$C$1:$H$1,{1;2;3;4;5;6}), 'Compétence par défaut'!$E34,'Compétence par défaut'!$F34,'Compétence par défaut'!$G34,'Compétence par défaut'!$H34,'Compétence par défaut'!$I34,'Compétence par défaut'!$J34))=0,'Compétence par défaut'!$D34,CHOOSE(LOOKUP($F$1,Caractéristiques!$C$1:$H$1,{1;2;3;4;5;6}), 'Compétence par défaut'!$E34,'Compétence par défaut'!$F34,'Compétence par défaut'!$G34,'Compétence par défaut'!$H34,'Compétence par défaut'!$I34,'Compétence par défaut'!$J34))","v":10},null,null,null,null,"","",10,{"$f":"LOOKUP(K34,{0;29;49;79;99},{\"\";0.1;0.2;0.5;1})","v":""}]
["Combat",{"$f":"'Compétence par défaut'!B35","v":"Bagarre"},null,{"$f":"IF(SUM(CHOOSE(LOOKUP($F$1,Caractéristiques!$C$1:$H$1,{1;2;3;4;5;6}), 'Compétence par défaut'!$E35,'Compétence par défaut'!$F35,'Compétence par défaut'!$G35,'Compétence par défaut'!$H35,'Compétence par défaut'!$I35,'Compétence par défaut'!$J35))=0,'Compétence par défaut'!$D35,CHOOSE(LOOKUP($F$1,Caractéristiques!$C$1:$H$1,{1;2;3;4;5;6}), 'Compétence par défaut'!$E35,'Compétence par défaut'!$F35,'Compétence par défaut'!$G35,'Compétence par défaut'!$H35,'Compétence par défaut'!$I35,'Compétence par défaut'!$J35))","v":22},null,null,null,null,"","",22,{"$f":"LOOKUP(K35,{0;29;49;79;99},{\"\";0.1;0.2;0.5;1})","v":""}]
[null,{"$f":"'Compétence par défaut'!B36","v":"Esquive"},null,{"$f":"IF(SUM(CHOOSE(LOOKUP($F$1,Caractéristiques!$C$1:$H$1,{1;2;3;4;5;6}), 'Compétence par défaut'!$E36,'Compétence par défaut'!$F36,'Compétence par défaut'!$G36,'Compétence par défaut'!$H36,'Compétence par défaut'!$I36,'Compétence par défaut'!$J36))=0,'Compétence par défaut'!$D36,CHOOSE(LOOKUP($F$1,Caractéristiques!$C$1:$H$1,{1;2;3;4;5;6}), 'Compétence par défaut'!$E36,'Compétence par défaut'!$F36,'Compétence par défaut'!$G36,'Compétence par défaut'!$H36,'Compétence par défaut'!$I36,'Compétence par défaut'!$J36))","v":30},null,30,null,null,30,60,60,{"$f":"LOOKUP(K36,{0;29;49;79;99},{\"\";0.1;0.2;0.5;1})","v":0.2}]
[null,{"$f":"'Compétence par défaut'!B37","v":"Parade"},null,{"$f":"IF(SUM(CHOOSE(LOOKUP($F$1,Caractéristiques!$C$1:$H$1,{1;2;3;4;5;6}), 'Compétence par défaut'!$E37,'Compétence par défaut'!$F37,'Compétence par défaut'!$G37,'Compétence par défaut'!$H37,'Compétence par défaut'!$I37,'Compétence par défaut'!$J37))=0,'Compétence par défaut'!$D37,CHOOSE(LOOKUP($F$1,Caractéristiques!$C$1:$H$1,{1;2;3;4;5;6}), 'Compétence par défaut'!$E37,'Compétence par défaut'!$F37,'Compétence par défaut'!$G37,'Compétence par défaut'!$H37,'Compétence par défaut'!$I37,'Compétence par défaut'!$J37))","v":22},null,20,null,null,20,42,42,{"$f":"LOOKUP(K37,{0;29;49;79;99},{\"\";0.1;0.2;0.5;1})","v":0.1}]
[null,{"$f":"'Compétence par défaut'!B38","v":"Armes de contact"},null,{"$f":"IF(SUM(CHOOSE(LOOKUP($F$1,Caractéristiques!$C$1:$H$1,{1;2;3;4;5;6}), 'Compétence par défaut'!$E38,'Compétence par défaut'!$F38,'Compétence par défaut'!$G38,'Compétence par défaut'!$H38,'Compétence par défaut'!$I38,'Compétence par défaut'!$J38))=0,'Compétence par défaut'!$D38,CHOOSE(LOOKUP($F$1,Caractéristiques!$C$1:$H$1,{1;2;3;4;5;6}), 'Compétence par défaut'!$E38,'Compétence par défaut'!$F38,'Compétence par défaut'!$G38,'Compétence par défaut'!$H38,'Compétence par défaut'!$I38,'Compétence par défaut'!$J38))","v":22},null,null,null,null,"","",22,{"$f":"LOOKUP(K38,{0;29;49;79;99},{\"\";0.1;0.2;0.5;1})","v":""}]
[null,{"$f":"'Compétence par défaut'!B39","v":"Armes à distance"},null,{"$f":"IF(SUM(CHOOSE(LOOKUP($F$1,Caractéristiques!$C$1:$H$1,{1;2;3;4;5;6}), 'Compétence par défaut'!$E39,'Compétence par défaut'!$F39,'Compétence par défaut'!$G39,'Compétence par défaut'!$H39,'Compétence par défaut'!$I39,'Compétence par défaut'!$J39))=0,'Compétence par défaut'!$D39,CHOOSE(LOOKUP($F$1,Caractéristiques!$C$1:$H$1,{1;2;3;4;5;6}), 'Compétence par défaut'!$E39,'Compétence par défaut'!$F39,'Compétence par défaut'!$G39,'Compétence par défaut'!$H39,'Compétence par défaut'!$I39,'Compétence par défaut'!$J39))","v":15},null,null,null,30,30,45,45,{"$f":"LOOKUP(K39,{0;29;49;79;99},{\"\";0.1;0.2;0.5;1})","v":0.1}]
[null,{"$f":"'Compétence par défaut'!B40","v":"Armes lourdes"},null,{"$f":"IF(SUM(CHOOSE(LOOKUP($F$1,Caractéristiques!$C$1:$H$1,{1;2;3;4;5;6}), 'Compétence par défaut'!$E40,'Compétence par défaut'!$F40,'Compétence par défaut'!$G40,'Compétence par défaut'!$H40,'Compétence par défaut'!$I40,'Compétence par défaut'!$J40))=0,'Compétence par défaut'!$D40,CHOOSE(LOOKUP($F$1,Caractéristiques!$C$1:$H$1,{1;2;3;4;5;6}), 'Compétence par défaut'!$E40,'Compétence par défaut'!$F40,'Compétence par défaut'!$G40,'Compétence par défaut'!$H40,'Compétence par défaut'!$I40,'Compétence par défaut'!$J40))","v":15},null,null,null,null,"","",15,{"$f":"LOOKUP(K40,{0;29;49;79;99},{\"\";0.1;0.2;0.5;1})","v":""}]
[null,{"$f":"'Compétence par défaut'!B41","v":"Arts martiaux ()"},null,{"$f":"IF(SUM(CHOOSE(LOOKUP($F$1,Caractéristiques!$C$1:$H$1,{1;2;3;4;5;6}), 'Compétence par défaut'!$E41,'Compétence par défaut'!$F41,'Compétence par défaut'!$G41,'Compétence par défaut'!$H41,'Compétence par défaut'!$I41,'Compétence par défaut'!$J41))=0,'Compétence par défaut'!$D41,CHOOSE(LOOKUP($F$1,Caractéristiques!$C$1:$H$1,{1;2;3;4;5;6}), 'Compétence par défaut'!$E41,'Compétence par défaut'!$F41,'Compétence par défaut'!$G41,'Compétence par défaut'!$H41,'Compétence par défaut'!$I41,'Compétence par défaut'!$J41))","v":0},null,null,null,null,"","",0,{"$f":"LOOKUP(K41,{0;29;49;79;99},{\"\";0.1;0.2;0.5;1})","v":""}]
["Affectés",null,null,null,{"$f":"FIXED(COUNTIF(E2:E41,\">0\"),0,TRUE) & \" / 2\"","v":"2 / 2"},{"$f":"FIXED(COUNTIF(F2:F41,\">0\"),0,TRUE) & \" / 4\"","v":"4 / 4"},{"$f":"FIXED(COUNTIF(G2:G41,\">0\"),0,TRUE) & \" / 5\"","v":"5 / 5"},{"$f":"FIXED(COUNTIF(H2:H41,\">0\"),0,TRUE) & \" / 3\"","v":"4 / 3"},{"$f":"COUNTIF(I2:I41,\">0\")","v":15},{"$f":"COUNTIF(J2:J41,\">0\")","v":15},39]
["Total",null,null,{"$f":"SUM(D2:D41)","v":521},{"$f":"FIXED(SUM(E2:E41),0,TRUE) & \" / 50\"","v":"50 / 50"},{"$f":"FIXED(SUM(F2:F41),0,TRUE) & \" / 100\"","v":"100 / 100"},{"$f":"FIXED(SUM(G2:G41),0,TRUE) & \" / 200\"","v":"200 / 200"},{"$f":"FIXED(SUM(H2:H41),0,TRUE) & \" / 100\"","v":"130 / 100"},{"$f":"SUM(I2:I41)","v":480},717,1001,{"$f":"SUM(L2:L41)","v":2.0000000000000004}]

{"sheet":"Matériel","index":4,"n_rows":1,"n_cols":3,"rows_kept":1,"cut":false,"hidden":false,"merged":[]}
["Intitulé","Points","Effets en jeu"]

{"sheet":"Modele-Recto","index":5,"n_rows":42,"n_cols":19,"rows_kept":42,"cut":false,"hidden":false,"merged":[[0,14,0,18],[34,6,40,6],[1,6,12,6],[13,6,15,6],[26,6,33,6],[16,6,19,6],[20,6,25,6]]}
["Nom",null,"Caractéristique","Valeur","%",null,"Domaine","Compétence","Spécialité","Valeur",null,"PV barre invisible","PV barre visible",null,"Armes"]
["_perso_",null,"TAIlle","_tai_","_masse_",null,"Interaction","Baratin",null,"_baratin%_",null,"_pv.00.inv_","_pv.00.vis_",null,"_armes.1.nom_","_armes.1.cmp_","_armes.1.cps_","_armes.1.deg_","_armes.1.mun_"]
[null,null,"APParence","_app_","_app%_",null,null,"Commandement",null,"_command%_",null,"_pv.05.inv_","_pv.05.vis_",null,"_armes.2.nom_","_armes.2.cmp_","_armes.2.cps_","_armes.2.deg_","_armes.2.mun_"]
["Joueur",null,"DEXtérité","_dex_","_dex%_",null,null,"Culture ()","_cult.1_","_cult.1%_",null,"_pv.10.inv_","_pv.10.vis_",null,"_armes.3.nom_","_armes.3.cmp_","_armes.3.cps_","_armes.3.deg_","_armes.3.mun_"]
["_joueur_",null,"FORce","_for_","_for%_",null,null,"Culture ()","_cult.2_","_cult.2%_",null,"_pv.15.inv_","_pv.15.vis_",null,"_armes.4.nom_","_armes.4.cmp_","_armes.4.cps_","_armes.4.deg_","_armes.4.mun_"]
[null,null,"CONstitution","_con_","_con%_",null,null,"Enseignement",null,"_enseign%_",null,"_pv.20.inv_","_pv.20.vis_",null,"_armes.5.nom_","_armes.5.cmp_","_armes.5.cps_","_armes.5.deg_","_armes.5.mun_"]
["Espèce",null,"INTelligence","_int_","_int%_",null,null,"Investigation",null,"_investig%_",null,"_pv.25.inv_","_pv.25.vis_"]
["_espece_",null,"PERception","_per_","_per%_",null,null,"Langue ()","_lang.1_","_lang.1%_"]
[null,null,"VOLonté","_vol_","_vol%_",null,null,"Langue ()","_lang.2_","_lang.2%_"]
["Métier",null,null,null,null,null,null,"Langue ()","_lang.3_","_lang.3%_"]
["_metier_",null,"Points de Vie","_pv_",null,null,null,"Marchandage",null,"_marchand%_"]
[null,null,"Initiative","_Init_",null,null,null,"Persuasion",null,"_persuad%_"]
["Origine",null,"Bonus aux dégâts","_BonusDegats_",null,null,null,"Stratégie",null,"_strat%_"]
["_origine_",null,"Armes naturelles","_degnat_",null,null,"Perception","Remarquer",null,"_remarqu%_"]
[null,null,"Armure naturelle","_pa_",null,null,null,"Intuition",null,"_intuit%_"]
["Argent",null,"Masse (kg)","_masse_",null,null,null,"Orientation ()","_orient.1_","_orient.1%_"]
["_argent_",null,null,null,null,null,"Dextérité","Déguisement",null,"_deguis%_"]
[null,null,null,null,null,null,null,"Discrétion",null,"_discret%_"]
[null,null,null,null,null,null,null,"Dissimulation",null,"_dissim%_"]
[null,null,null,null,null,null,null,"Illusion",null,"_illus%_"]
[null,null,null,null,null,null,"Physique","Pilotage ()","_pilot.1_","_pilot.1%_"]
[null,null,null,null,null,null,null,"Pilotage ()","_pilot.2_","_pilot.2%_"]
[null,null,null,null,null,null,null,"Grimper",null,"_grimp%_"]
[null,null,null,null,null,null,null,"Lancer",null,"_lanc%_"]
[null,null,null,null,null,null,null,"Nager",null,"_nag%_"]
[null,null,null,null,null,null,null,"Sauter",null,"_saut%_"]
[null,null,null,null,null,null,"Savoirs","Art/Artisanat ()","_art.1_","_art.1%_"]
[null,null,null,null,null,null,null,"Art/Artisanat ()","_art.2_","_art.2%_"]
[null,null,null,null,null,null,null,"Évaluer",null,"_eval%_"]
[null,null,null,null,null,null,null,"Jeu ()","_jeu.1_","_jeu.1%_"]
[null,null,null,null,null,null,null,"Premiers soins",null,"_1soins%_"]
[null,null,null,null,null,null,null,"Technologie ()","_tech.1_","_tech.1%_"]
[null,null,null,null,null,null,null,"Technologie ()","_tech.2_","_tech.2%_"]
[null,null,null,null,null,null,null,"Technologie ()","_tech.3_","_tech.3%_"]
[null,null,null,null,null,null,"Combat","Bagarre",null,"_bagarre%_"]
[null,null,null,null,null,null,null,"Esquive",null,"_esquive%_"]
[null,null,null,null,null,null,null,"Parade",null,"_parade%_"]
[null,null,null,null,null,null,null,"Armes de contact",null,"_contact%_"]
[null,null,null,null,null,null,null,"Armes à distance",null,"_distance%_"]
[null,null,null,null,null,null,null,"Armes lourdes",null,"_lourdes%_"]
[null,null,null,null,null,null,null,"Arts martiaux ()","_martiaux.1_","_martiaux.1%_"]
[null,null,null,null,null,null,null,"Arts martiaux ()","_martiaux.2_","_martiaux.2%_"]

{"sheet":"Valeurs-Recto","index":6,"n_rows":42,"n_cols":19,"rows_kept":42,"cut":false,"hidden":false,"merged":[[0,14,0,18],[34,6,40,6],[1,6,12,6],[13,6,15,6],[16,6,19,6],[20,6,25,6],[26,6,33,6]]}
["Nom",null,"Caractéristique","Valeur","%",null,"Domaine","Compétence","Spécialité","Valeur",null,"PV barre invisible","PV barre visible",null,"Armes"]
[{"$f":"'Choix initiaux'!A2","v":"Ant'AkaR H'alk"},null,"TAIlle",{"$f":"CHOOSE(LOOKUP($A$8,Caractéristiques!$C$1:$H$1,{1;2;3;4;5;6}),Caractéristiques!$C2,Caractéristiques!$D2,Caractéristiques!$E2,Caractéristiques!$F2,Caractéristiques!$G2,Caractéristiques!$H2)","v":10},{"$f":"FLOOR(CHOOSE(LOOKUP($A$8,Caractéristiques!$C$1:$H$1,{1;2;3;4;5;6}),Caractéristiques!$C$16,Caractéristiques!$D$16,Caractéristiques!$E$16,Caractéristiques!$F$16,Caractéristiques!$G$16,Caractéristiques!$H$16),1)","v":50},null,"Interaction","Baratin",{"$f":"IF(Compétences!$C2=\"\",\"\",Compétences!$C2)","v":""},{"$f":"Compétences!K2","v":5},null,{"$f":"REPT(\"X\",IF($D$11< 1, 0, IF($D$11> 4, 5, MOD($D$11,5))))","v":"XXXXX"},{"$f":"REPT(\"X\",5-IF($D$11< 1, 0, IF($D$11> 4, 5, MOD($D$11,5))))","v":""},null,"Bâton","C",1,"1D8"]
[null,null,"APParence",{"$f":"CHOOSE(LOOKUP($A$8,Caractéristiques!$C$1:$H$1,{1;2;3;4;5;6}),Caractéristiques!$C3,Caractéristiques!$D3,Caractéristiques!$E3,Caractéristiques!$F3,Caractéristiques!$G3,Caractéristiques!$H3)","v":10},{"$f":"D3*5","v":50},null,null,"Commandement",{"$f":"IF(Compétences!$C3=\"\",\"\",Compétences!$C3)","v":""},{"$f":"Compétences!K3","v":5},null,{"$f":"REPT(\"X\",IF($D$11< 6, 0, IF($D$11> 9, 5, MOD($D$11,5))))","v":"XXX"},{"$f":"REPT(\"X\",5-IF($D$11< 6, 0, IF($D$11> 9, 5, MOD($D$11,5))))","v":"XX"},null,"Taser (étourd.)","D",2,"1D4+2",30]
["Joueur",null,"DEXtérité",{"$f":"CHOOSE(LOOKUP($A$8,Caractéristiques!$C$1:$H$1,{1;2;3;4;5;6}),Caractéristiques!$C4,Caractéristiques!$D4,Caractéristiques!$E4,Caractéristiques!$F4,Caractéristiques!$G4,Caractéristiques!$H4)","v":15},75,null,null,"Culture ()",{"$f":"IF(Compétences!$C4=\"\",\"\",Compétences!$C4)","v":"Ka'Ralt"},{"$f":"Compétences!K4","v":40},null,{"$f":"REPT(\"X\",IF($D$11<11, 0, IF($D$11>14, 5, MOD($D$11,5))))","v":""},{"$f":"REPT(\"X\",5-IF($D$11<11, 0, IF($D$11>14, 5, MOD($D$11,5))))","v":"XXXXX"}]
[{"$f":"'Choix initiaux'!A5","v":"_ _ _ _ _ _ _ _ _ _ _ _ _ _ _ _ _ _ _ _"},null,"FORce",{"$f":"CHOOSE(LOOKUP($A$8,Caractéristiques!$C$1:$H$1,{1;2;3;4;5;6}),Caractéristiques!$C5,Caractéristiques!$D5,Caractéristiques!$E5,Caractéristiques!$F5,Caractéristiques!$G5,Caractéristiques!$H5)","v":7},35,null,null,"Culture ()",{"$f":"IF(Compétences!$C5=\"\",\"\",Compétences!$C5)","v":"Bureaucratie"},{"$f":"Compétences!K5","v":45},null,{"$f":"REPT(\"X\",IF($D$11<16, 0, IF($D$11>19, 5, MOD($D$11,5))))","v":""},{"$f":"REPT(\"X\",5-IF($D$11<16, 0, IF($D$11>19, 5, MOD($D$11,5))))","v":"XXXXX"}]
[null,null,"CONstitution",{"$f":"CHOOSE(LOOKUP($A$8,Caractéristiques!$C$1:$H$1,{1;2;3;4;5;6}),Caractéristiques!$C6,Caractéristiques!$D6,Caractéristiques!$E6,Caractéristiques!$F6,Caractéristiques!$G6,Caractéristiques!$H6)","v":6},30,null,null,"Enseignement",{"$f":"IF(Compétences!$C6=\"\",\"\",Compétences!$C6)","v":""},{"$f":"Compétences!K6","v":20},null,{"$f":"REPT(\"X\",IF($D$11<21, 0, IF($D$11>24, 5, MOD($D$11,5))))","v":""},{"$f":"REPT(\"X\",5-IF($D$11<21, 0, IF($D$11>24, 5, MOD($D$11,5))))","v":"XXXXX"}]
["Espèce",null,"INTelligence",{"$f":"CHOOSE(LOOKUP($A$8,Caractéristiques!$C$1:$H$1,{1;2;3;4;5;6}),Caractéristiques!$C7,Caractéristiques!$D7,Caractéristiques!$E7,Caractéristiques!$F7,Caractéristiques!$G7,Caractéristiques!$H7)","v":17},85,null,null,"Investigation",{"$f":"IF(Compétences!$C7=\"\",\"\",Compétences!$C7)","v":""},{"$f":"Compétences!K7","v":65},null,{"$f":"REPT(\"X\",IF($D$11<26, 0, IF($D$11>29, 5, MOD($D$11,5))))","v":""},{"$f":"REPT(\"X\",5-IF($D$11<26, 0, IF($D$11>29, 5, MOD($D$11,5))))","v":"XXXXX"}]
[{"$f":"Compétences!$F$1","v":"K'Rinn"},null,"PERception",{"$f":"CHOOSE(LOOKUP($A$8,Caractéristiques!$C$1:$H$1,{1;2;3;4;5;6}),Caractéristiques!$C8,Caractéristiques!$D8,Caractéristiques!$E8,Caractéristiques!$F8,Caractéristiques!$G8,Caractéristiques!$H8)","v":15},75,null,null,"Langue ()",{"$f":"IF(Compétences!$C8=\"\",\"\",Compétences!$C8)","v":"Ka'Raltien"},{"$f":"Compétences!K8","v":50}]
[null,null,"VOLonté",{"$f":"CHOOSE(LOOKUP($A$8,Caractéristiques!$C$1:$H$1,{1;2;3;4;5;6}),Caractéristiques!$C9,Caractéristiques!$D9,Caractéristiques!$E9,Caractéristiques!$F9,Caractéristiques!$G9,Caractéristiques!$H9)","v":12},60,null,null,"Langue ()",{"$f":"IF(AND(Compétences!$C9=\"\",Compétences!$C10<>\"\"),Compétences!$C10,IF(Compétences!$C9=\"\",\"\",Compétences!$C9))","v":"Irilia"},{"$f":"IF(AND(Compétences!$C9=\"\",Compétences!$C10<>\"\"),Compétences!K10,Compétences!K9)","v":40}]
["Métier",null,null,null,null,null,null,"Langue ()",{"$f":"IF(AND(Compétences!$C10<>\"\",Compétences!$C9=\"\"),\"\",IF(Compétences!$C10=\"\",\"\",Compétences!$C10))","v":"Mandarin"},{"$f":"IF(AND(Compétences!$C10<>\"\",Compétences!$C9=\"\"),Compétences!K9,Compétences!K10)","v":45}]
[{"$f":"Compétences!$G$1","v":"Détective"},null,"Points de Vie",{"$f":"CHOOSE(LOOKUP($A$8,Caractéristiques!$C$1:$H$1,{1;2;3;4;5;6}),Caractéristiques!$C11,Caractéristiques!$D11,Caractéristiques!$E11,Caractéristiques!$F11,Caractéristiques!$G11,Caractéristiques!$H11)","v":8},null,null,null,"Marchandage",{"$f":"IF(Compétences!$C11=\"\",\"\",Compétences!$C11)","v":""},{"$f":"Compétences!K11","v":5}]
[null,null,"Initiative",{"$f":"CHOOSE(LOOKUP($A$8,Caractéristiques!$C$1:$H$1,{1;2;3;4;5;6}),Caractéristiques!$C12,Caractéristiques!$D12,Caractéristiques!$E12,Caractéristiques!$F12,Caractéristiques!$G12,Caractéristiques!$H12)","v":25},null,null,null,"Persuasion",{"$f":"IF(Compétences!$C12=\"\",\"\",Compétences!$C12)","v":""},{"$f":"Compétences!K12","v":45}]
["Origine",null,"Bonus aux dégâts",{"$f":"CHOOSE(LOOKUP($A$8,Caractéristiques!$C$1:$H$1,{1;2;3;4;5;6}),Caractéristiques!$C13,Caractéristiques!$D13,Caractéristiques!$E13,Caractéristiques!$F13,Caractéristiques!$G13,Caractéristiques!$H13)","v":"+1D4"},null,null,null,"Stratégie",{"$f":"IF(Compétences!$C13=\"\",\"\",Compétences!$C13)","v":""},{"$f":"Compétences!K13","v":5}]
[{"$f":"'Choix initiaux'!A14","v":"K'Tilk'Elh, Secession de Ka'Ralt"},null,"Armes naturelles",{"$f":"CHOOSE(LOOKUP($A$8,Caractéristiques!$C$1:$H$1,{1;2;3;4;5;6}),Caractéristiques!$C14,Caractéristiques!$D14,Caractéristiques!$E14,Caractéristiques!$F14,Caractéristiques!$G14,Caractéristiques!$H14)","v":"1D4"},null,null,"Perception","Remarquer",{"$f":"IF(Compétences!$C14=\"\",\"\",Compétences!$C14)","v":""},{"$f":"Compétences!K14","v":70}]
[null,null,"Armure naturelle",{"$f":"CHOOSE(LOOKUP($A$8,Caractéristiques!$C$1:$H$1,{1;2;3;4;5;6}),Caractéristiques!$C15,Caractéristiques!$D15,Caractéristiques!$E15,Caractéristiques!$F15,Caractéristiques!$G15,Caractéristiques!$H15)","v":1},null,null,null,"Intuition",{"$f":"IF(Compétences!$C15=\"\",\"\",Compétences!$C15)","v":""},{"$f":"Compétences!K15","v":10}]
["Argent",null,"Masse (kg)",{"$f":"CHOOSE(LOOKUP($A$8,Caractéristiques!$C$1:$H$1,{1;2;3;4;5;6}),Caractéristiques!$C16,Caractéristiques!$D16,Caractéristiques!$E16,Caractéristiques!$F16,Caractéristiques!$G16,Caractéristiques!$H16)","v":50},null,null,null,"Orientation ()",{"$f":"IF(Compétences!$C16=\"\",\"\",Compétences!$C16)","v":""},{"$f":"Compétences!K16","v":5}]
[1000,null,null,null,null,null,"Dextérité","Déguisement",{"$f":"IF(Compétences!$C17=\"\",\"\",Compétences!$C17)","v":""},{"$f":"Compétences!K17","v":10}]
[null,null,null,null,null,null,null,"Discrétion",{"$f":"IF(Compétences!$C18=\"\",\"\",Compétences!$C18)","v":""},{"$f":"Compétences!K18","v":10}]
[null,null,null,null,null,null,null,"Dissimulation",{"$f":"IF(Compétences!$C19=\"\",\"\",Compétences!$C19)","v":""},{"$f":"Compétences!K19","v":10}]
[null,null,null,null,null,null,null,"Illusion",{"$f":"IF(Compétences!$C20=\"\",\"\",Compétences!$C20)","v":""},{"$f":"Compétences!K20","v":5}]
[null,null,null,null,null,null,"Physique","Pilotage ()",{"$f":"IF(Compétences!$C21=\"\",\"\",Compétences!$C21)","v":"Drones"},{"$f":"Compétences!K21","v":55}]
[null,null,null,null,null,null,null,"Pilotage ()",{"$f":"IF(Compétences!$C22=\"\",\"\",Compétences!$C22)","v":""},{"$f":"Compétences!K22","v":15}]
[null,null,null,null,null,null,null,"Grimper",{"$f":"IF(Compétences!$C23=\"\",\"\",Compétences!$C23)","v":""},{"$f":"Compétences!K23","v":20}]
[null,null,null,null,null,null,null,"Lancer",{"$f":"IF(Compétences!$C24=\"\",\"\",Compétences!$C24)","v":""},{"$f":"Compétences!K24","v":25}]
[null,null,null,null,null,null,null,"Nager",{"$f":"IF(Compétences!$C25=\"\",\"\",Compétences!$C25)","v":""},{"$f":"Compétences!K25","v":5}]
[null,null,null,null,null,null,null,"Sauter",{"$f":"IF(Compétences!$C26=\"\",\"\",Compétences!$C26)","v":""},{"$f":"Compétences!K26","v":25}]
[null,null,null,null,null,null,"Savoirs","Art/Artisanat ()",{"$f":"IF(Compétences!$C27=\"\",\"\",Compétences!$C27)","v":"Serrurerie"},{"$f":"Compétences!K27","v":40}]
[null,null,null,null,null,null,null,"Art/Artisanat ()",{"$f":"IF(Compétences!$C28=\"\",\"\",Compétences!$C28)","v":"Falsification"},{"$f":"Compétences!K28","v":40}]
[null,null,null,null,null,null,null,"Évaluer",{"$f":"IF(Compétences!$C29=\"\",\"\",Compétences!$C29)","v":""},{"$f":"Compétences!K29","v":5}]
[null,null,null,null,null,null,null,"Jeu ()",{"$f":"IF(Compétences!$C30=\"\",\"\",Compétences!$C30)","v":""},{"$f":"Compétences!K30","v":10}]
[null,null,null,null,null,null,null,"Premiers soins",{"$f":"IF(Compétences!$C31=\"\",\"\",Compétences!$C31)","v":""},{"$f":"Compétences!K31","v":35}]
[null,null,null,null,null,null,null,"Technologie ()",{"$f":"IF(Compétences!$C32=\"\",\"\",Compétences!$C32)","v":""},{"$f":"Compétences!K32","v":10}]
[null,null,null,null,null,null,null,"Technologie ()",{"$f":"IF(Compétences!$C33=\"\",\"\",Compétences!$C33)","v":""},{"$f":"Compétences!K33","v":10}]
[null,null,null,null,null,null,null,"Technologie ()",{"$f":"IF(Compétences!$C34=\"\",\"\",Compétences!$C34)","v":""},{"$f":"Compétences!K34","v":10}]
[null,null,null,null,null,null,"Combat","Bagarre",{"$f":"IF(Compétences!$C35=\"\",\"\",Compétences!$C35)","v":""},{"$f":"Compétences!K35","v":22}]
[null,null,null,null,null,null,null,"Esquive",{"$f":"IF(Compétences!$C36=\"\",\"\",Compétences!$C36)","v":""},{"$f":"Compétences!K36","v":60}]
[null,null,null,null,null,null,null,"Parade",{"$f":"IF(Compétences!$C37=\"\",\"\",Compétences!$C37)","v":""},{"$f":"Compétences!K37","v":42}]
[null,null,null,null,null,null,null,"Armes de contact",{"$f":"IF(Compétences!$C38=\"\",\"\",Compétences!$C38)","v":""},{"$f":"Compétences!K38","v":22}]
[null,null,null,null,null,null,null,"Armes à distance",{"$f":"IF(Compétences!$C39=\"\",\"\",Compétences!$C39)","v":""},{"$f":"Compétences!K39","v":45}]
[null,null,null,null,null,null,null,"Armes lourdes",{"$f":"IF(Compétences!$C40=\"\",\"\",Compétences!$C40)","v":""},{"$f":"Compétences!K40","v":15}]
[null,null,null,null,null,null,null,"Arts martiaux ()",{"$f":"IF(Compétences!$C41=\"\",\"\",Compétences!$C41)","v":""},{"$f":"Compétences!K41","v":0}]
[null,null,null,null,null,null,null,"Arts martiaux ()",null,0]

{"sheet":"Modele-Verso","index":7,"n_rows":23,"n_cols":8,"rows_kept":23,"cut":false,"hidden":false,"merged":[[0,4,0,7],[11,4,11,7]]}
["Nom",null,"Historique",null,"Implants"]
["_perso_",null,"_histoire.1_",null,"Nom","Nb","Description","Prix"]
[null,null,"_histoire.2_",null,"_implants.1.nom_","_implants.1.nb_","_implants.1.desc_","_implants.1.prix_"]
["Joueur",null,"_histoire.3_",null,"_implants.2.nom_","_implants.2.nb_","_implants.2.desc_","_implants.2.prix_"]
["_joueur_",null,"_histoire.4_",null,"_implants.3.nom_","_implants.3.nb_","_implants.3.desc_","_implants.3.prix_"]
[null,null,"_histoire.5_",null,"_implants.4.nom_","_implants.4.nb_","_implants.4.desc_","_implants.4.prix_"]
[null,null,"_histoire.6_",null,"_implants.5.nom_","_implants.5.nb_","_implants.5.desc_","_implants.5.prix_"]
[null,null,"_histoire.7_",null,"_implants.6.nom_","_implants.6.nb_","_implants.6.desc_","_implants.6.prix_"]
[null,null,null,null,"_implants.7.nom_","_implants.7.nb_","_implants.7.desc_","_implants.7.prix_"]
[null,null,"Contacts",null,"_implants.8.nom_","_implants.8.nb_","_implants.8.desc_","_implants.8.prix_"]
[null,null,"_contacts.1_"]
[null,null,"_contacts.2_",null,"Matériels"]
[null,null,"_contacts.3_",null,"Nom","Nb","Description","Prix"]
[null,null,"_contacts.4_",null,"_objets.1.nom_","_objets.1.nb_","_objets.1.desc_","_objets.1.prix_"]
[null,null,"_contacts.5_",null,"_objets.2.nom_","_objets.2.nb_","_objets.2.desc_","_objets.2.prix_"]
[null,null,null,null,"_objets.3.nom_","_objets.3.nb_","_objets.3.desc_","_objets.3.prix_"]
[null,null,null,null,"_objets.4.nom_","_objets.4.nb_","_objets.4.desc_","_objets.4.prix_"]
[null,null,null,null,"_objets.5.nom_","_objets.5.nb_","_objets.5.desc_","_objets.5.prix_"]
[null,null,null,null,"_objets.6.nom_","_objets.6.nb_","_objets.6.desc_","_objets.6.prix_"]
[null,null,null,null,"_objets.7.nom_","_objets.7.nb_","_objets.7.desc_","_objets.7.prix_"]
[null,null,null,null,"_objets.8.nom_","_objets.8.nb_","_objets.8.desc_","_objets.8.prix_"]
[null,null,null,null,"_objets.9.nom_","_objets.9.nb_","_objets.9.desc_","_objets.9.prix_"]
[null,null,null,null,"_objets.10.nom_","_objets.10.nb_","_objets.10.desc_","_objets.10.prix_"]

{"sheet":"Valeurs-Verso","index":8,"n_rows":21,"n_cols":8,"rows_kept":21,"cut":false,"hidden":false,"merged":[[0,4,0,7],[11,4,11,7]]}
["Nom",null,"Historique",null,"Implants"]
[{"$f":"'Choix initiaux'!A2","v":"Ant'AkaR H'alk"},null,{"$f":"IF(Compétences!M3=\"\",\"\",Compétences!M3)","v":"Eclose sur un monde trop froid, Ant’AkaR a passé son enfance à rêver de terraformation. Après sa "},null,"Nom","Nb","Description","Prix"]
[null,null,{"$f":"IF(Compétences!M4=\"\",\"\",Compétences!M4)","v":"métamorphose, trop frêle pour la rude vie de terrain, elle a été employée dans la diplomatie. Lors "},null,"Téléphone crânien",1,"Connexion discrète a l'infosphère publique","0000"]
["Joueur",null,{"$f":"IF(Compétences!M5=\"\",\"\",Compétences!M5)","v":"des négociations avec les Rithai, elle a déjoué un complot contre l’envoyé de la Rithai Kemae. "},null,"Port mémoire",1,"Port pour aiguille de données","0000"]
[{"$f":"'Choix initiaux'!A5","v":"_ _ _ _ _ _ _ _ _ _ _ _ _ _ _ _ _ _ _ _"},null,{"$f":"IF(Compétences!M6=\"\",\"\",Compétences!M6)","v":"Elle s’est alors passionnée pour les enquêtes et a parcouru les espaces rith et humain. Pour sa "},null,"Port mémoire",1,"Port mémoriel pour compétences","0000"]
[null,null,{"$f":"IF(Compétences!M7=\"\",\"\",Compétences!M7)","v":"sécurité, elle y a appris le combat, malgré sa répugnance. Son passé de diplomate, son intelligence "},null,"Doigt modulable",2,"Emplacement pour modules divers","0000"]
[null,null,{"$f":"IF(Compétences!M8=\"\",\"\",Compétences!M8)","v":"vive et ses sens toujours aux aguets lui donnent un avantage dans les enquêtes impliquant plusieurs "}]
[null,null,{"$f":"IF(Compétences!M9=\"\",\"\",Compétences!M9)","v":"espèces. Elle est basée sur Nouvelle Hong-Kong, aux limites des espaces k'rinn, humain et rith."}]
[]
[null,null,"Contacts"]
[null,null,{"$f":"IF(Compétences!M11=\"\",\"\",Compétences!M11)","v":"Rilathn ud Irilia - Rith - Ambassadeur itinérant Irilia - Lui doit la vie dans l'incident de T'Kell"}]
[null,null,{"$f":"IF(Compétences!M12=\"\",\"\",Compétences!M12)","v":"R’Lef’Kkip – K’Rinn - Marchand et Spatien - Son ancien supérieur sur la station T’Kell"},null,"Matériels"]
[null,null,{"$f":"IF(Compétences!M13=\"\",\"\",Compétences!M13)","v":"Chang-Li Liang - Humaine - Détective - Son employeur sur la station Nouvelle Hong-Kong"},null,"Nom","Nb","Description","Prix"]
[null,null,{"$f":"IF(Compétences!M14=\"\",\"\",Compétences!M14)","v":"R’Lef’Lekt – K’Rinn (Défenseur) - Chasseur de primes - Ennemi depuis T’Kell"},null,"Bâton de combat",1,"Bâton de 2m, se replie en 5cm","0000"]
[null,null,{"$f":"IF(Compétences!M15=\"\",\"\",Compétences!M15)","v":"Navnit Sarraoui - Humain - Enquêteur - Police Stellaire, espace humain - Commanditaire régulier"},null,"taser camouflé",1,"Etourisseur, Discret, 5% de détection","0000"]
[null,null,null,null,"Chargeur Taser",2,"30 munitions","0000"]
[null,null,null,null,"Scanner portatif",1,"Sonde un objet; +30% Evaluer/Remarquer","0000"]
[null,null,null,null,"Données de Compétences",1,"Premiers soins +40%","0000"]
[null,null,null,null,"Données de Compétences",1,"Langue (Hoshigo) +30%","0000"]
[null,null,null,null,"Données de Compétences",1,"Culture (Spatiens) : +30%","0000"]
[null,null,null,null,"Données de Compétences",1,"Pilotage (Cargos) : +30%","0000"]

{"sheet":"Fichiers","index":9,"n_rows":6,"n_cols":2,"rows_kept":6,"cut":false,"hidden":false,"merged":[[0,0,2,0],[3,0,5,0]]}
["Recto","Feuille Modèle (SVG)"]
[null,"Feuille finale (SVG)"]
[null,"Correspondance à exporter (TXT)"]
["Verso","Feuille Modèle (SVG)"]
[null,"Feuille finale (SVG)"]
[null,"Correspondance à exporter (TXT)"]

{"sheet":"Taille","index":10,"n_rows":33,"n_cols":10,"rows_kept":33,"cut":false,"hidden":false,"merged":[]}
["TAIlle","Chang.","Humains","K'Rinn","Marionn.","Rith","Sshaad","Masse (kg)","Paramètre","Valeur"]
[1,null,null,null,null,null,null,{"$f":"J$3*(A2^J$2)","v":0.5},"Exposant",2]
[2,null,null,null,null,null,null,{"$f":"J$3*(A3^J$2)","v":2},"Multiplicateur",0.5]
[3,null,null,null,null,null,null,4.5]
[4,null,null,null,null,null,null,8]
[5,null,null,null,null,null,null,12.5]
[6,null,null,null,null,null,null,18]
[7,null,null,null,null,null,null,24.5]
[8,null,null,null,null,null,null,32]
[9,null,null,null,null,null,null,40.5]
[10,null,null,null,null,null,null,50]
[11,null,null,null,null,null,null,60.5]
[12,null,null,null,null,null,null,72]
[13,null,null,null,null,null,null,84.5]
[14,null,null,null,null,null,null,98]
[15,null,null,null,null,null,null,112.5]
[16,null,null,null,null,null,null,128]
[17,null,null,null,null,null,null,144.5]
[18,null,null,null,null,null,null,162]
[19,null,null,null,null,null,null,180.5]
[20,null,null,null,null,null,null,200]
[21,null,null,null,null,null,null,220.5]
[22,null,null,null,null,null,null,242]
[23,null,null,null,null,null,null,264.5]
[24,null,null,null,null,null,null,{"$f":"J$3*(A25^J$2)","v":288}]
[25,null,null,null,null,null,null,312.5]
[]
["Min",11,10,8,2,19,11]
["Max",20,16,14,5,25,17]
["Max-Min",{"$f":"B29-B28","v":9},{"$f":"C29-C28","v":6},6,3,6,6]
["a",{"$f":"B28-B32*2","v":8},{"$f":"C28-C32*2","v":8},6,1,17,9]
["b",{"$f":"B30/6","v":1.5},{"$f":"C30/6","v":1},1,0.5,1,1]
["a + b * 2D8"]

{"sheet":"Compétence par défaut","index":11,"n_rows":45,"n_cols":10,"rows_kept":45,"cut":false,"hidden":false,"merged":[[1,0,12,0],[34,0,40,0],[13,0,15,0],[26,0,33,0],[16,0,19,0],[20,0,25,0]]}
["Domaine","Compétence","Spécialité","Base","Changeforme","Humain","K'Rinn","Marionnettiste","Rith","Sshaad"]
["Interaction","Baratin",null,5]
[null,"Commandement",null,5,null,null,null,null,20]
[null,"Culture ()","1ère",15]
[null,"Culture ()","2ème",5]
[null,"Enseignement",null,10,null,20,20,null,null,30]
[null,"Investigation",null,15]
[null,"Langue ()","1ère",25]
[null,"Langue ()","2ème",10,null,null,20]
[null,"Langue ()","3ème",10,null,null,15]
[null,"Marchandage",null,5]
[null,"Persuasion",null,15]
[null,"Stratégie",null,5,null,20,null,null,20,20]
["Perception","Remarquer",null,20]
[null,"Intuition",null,10,20]
[null,"Orientation ()","1ère",5]
["Dextérité","Déguisement",null,10,25]
[null,"Discrétion",null,10,25,null,null,25,5]
[null,"Dissimulation",null,10]
[null,"Illusion",null,5]
["Physique","Pilotage ()","1ère","DEX",{"$f":"Caractéristiques!C$4","v":12},{"$f":"Caractéristiques!D$4","v":12},{"$f":"Caractéristiques!E$4","v":15},{"$f":"Caractéristiques!F$4","v":13},{"$f":"Caractéristiques!G$4","v":9},{"$f":"Caractéristiques!H$4","v":9}]
[null,"Pilotage ()","2ème","DEX",{"$f":"Caractéristiques!C$4","v":12},{"$f":"Caractéristiques!D$4","v":12},{"$f":"Caractéristiques!E$4","v":15},{"$f":"Caractéristiques!F$4","v":13},{"$f":"Caractéristiques!G$4","v":9},{"$f":"Caractéristiques!H$4","v":9}]
[null,"Grimper",null,null,30,30,20,45,5,20]
[null,"Lancer",null,25,15,null,null,5,40]
[null,"Nager",null,25,null,null,5,10,null,40]
[null,"Sauter",null,25,10,null,null,10]
["Savoirs","Art/Artisanat ()","1ère",10]
[null,"Art/Artisanat ()","2ème",10]
[null,"Évaluer",null,5]
[null,"Jeu ()","1ère",10]
[null,"Premiers soins",null,5,null,null,null,25]
[null,"Technologie ()","1ère",10]
[null,"Technologie ()","2ème",10]
[null,"Technologie ()","3ème",10]
["Combat","Bagarre",null,"FOR+DEX",{"$f":"Caractéristiques!C$4+Caractéristiques!C$5","v":22},{"$f":"Caractéristiques!D$4+Caractéristiques!D$5","v":25},{"$f":"Caractéristiques!E$4+Caractéristiques!E$5","v":22},{"$f":"Caractéristiques!F$4+Caractéristiques!F$5","v":16},{"$f":"Caractéristiques!G$4+Caractéristiques!G$5","v":28},{"$f":"Caractéristiques!H$4+Caractéristiques!H$5","v":22}]
[null,"Esquive",null,"DEX*2",{"$f":"Caractéristiques!C$4*2","v":24},{"$f":"Caractéristiques!D$4*2","v":24},{"$f":"Caractéristiques!E$4*2","v":30},{"$f":"Caractéristiques!F$4*2","v":26},{"$f":"Caractéristiques!G$4*2","v":18},{"$f":"Caractéristiques!H$4*2","v":18}]
[null,"Parade",null,"FOR+DEX",{"$f":"(Caractéristiques!C$4+Caractéristiques!C$5)","v":22},{"$f":"(Caractéristiques!D$4+Caractéristiques!D$5)","v":25},{"$f":"(Caractéristiques!E$4+Caractéristiques!E$5)","v":22},{"$f":"(Caractéristiques!F$4+Caractéristiques!F$5)","v":16},{"$f":"(Caractéristiques!G$4+Caractéristiques!G$5)","v":28},{"$f":"(Caractéristiques!H$4+Caractéristiques!H$5)","v":22}]
[null,"Armes de contact",null,"FOR+DEX",{"$f":"(Caractéristiques!C$4+Caractéristiques!C$5)","v":22},{"$f":"(Caractéristiques!D$4+Caractéristiques!D$5)","v":25},{"$f":"(Caractéristiques!E$4+Caractéristiques!E$5)","v":22},{"$f":"(Caractéristiques!F$4+Caractéristiques!F$5)","v":16},{"$f":"(Caractéristiques!G$4+Caractéristiques!G$5)","v":28},{"$f":"(Caractéristiques!H$4+Caractéristiques!H$5)","v":22}]
[null,"Armes à distance",null,"DEX",{"$f":"Caractéristiques!C$4","v":12},{"$f":"Caractéristiques!D$4","v":12},{"$f":"Caractéristiques!E$4","v":15},{"$f":"Caractéristiques!F$4","v":13},{"$f":"Caractéristiques!G$4","v":9},{"$f":"Caractéristiques!H$4","v":9}]
[null,"Armes lourdes",null,"DEX",{"$f":"Caractéristiques!C$4","v":12},{"$f":"Caractéristiques!D$4","v":12},{"$f":"Caractéristiques!E$4","v":15},{"$f":"Caractéristiques!F$4","v":13},{"$f":"Caractéristiques!G$4","v":9},{"$f":"Caractéristiques!H$4","v":9}]
[null,"Arts martiaux ()"]
["Affectés",null,null,null,{"$f":"COUNTIF(E2:E41,\">0\")","v":14},11,13,14,13,12]
["Base",null,null,{"$f":"SUM(D$2:D$41)","v":340},{"$f":"SUMIF(E$2:E$41,\"\",$D$2:$D$41)","v":260},325,285,250,295,300]
["Espèce",null,null,null,{"$f":"SUMIF(E$2:E$41,\">0\")","v":263},217,236,246,228,230]
["Total",null,null,null,{"$f":"E43+E44","v":523},542,521,496,523,530]

{"sheet":"Jeunesse","index":12,"n_rows":42,"n_cols":8,"rows_kept":42,"cut":false,"hidden":false,"merged":[[27,0,34,0],[35,0,41,0],[2,0,13,0],[14,0,16,0],[17,0,20,0],[21,0,26,0]]}
["Domaine","Compétence","Changeforme","Humain","K'Rinn","Marionnettiste","Rith","Sshaad"]
["Affectés",null,{"$f":"COUNTIF(C3:C37,\"=\"&\"*\")","v":2},2,2,2,2,2]
["Interaction","Baratin"]
[null,"Commandement"]
[null,"Culture ()","Société de naissance","Société de naissance","Société de naissance","Société de naissance","Société de naissance","Société de renaissance"]
[null,"Culture ()"]
[null,"Enseignement"]
[null,"Investigation"]
[null,"Langue ()","Langue de Ruche","Langue maternelle","Langue de nurserie","Langue du parent","Langue du clan\nde naissance","Langue du daneb\nde renaissance"]
[null,"Langue ()"]
[null,"Langue ()"]
[null,"Marchandage"]
[null,"Persuasion"]
[null,"Stratégie"]
["Perception","Remarquer"]
[null,"Intuition"]
[null,"Orientation ()"]
["Dextérité","Déguisement"]
[null,"Discrétion"]
[null,"Dissimulation"]
[null,"Illusion"]
["Physique","Pilotage ()"]
[null,"Pilotage ()"]
[null,"Grimper"]
[null,"Lancer"]
[null,"Nager"]
[null,"Sauter"]
["Savoirs","Art/Artisanat ()"]
[null,"Art/Artisanat ()"]
[null,"Évaluer"]
[null,"Jeu ()"]
[null,"Premiers soins"]
[null,"Technologie ()"]
[null,"Technologie ()"]
[null,"Technologie ()"]
["Combat","Bagarre"]
[null,"Esquive"]
[null,"Parade"]
[null,"Armes de contact"]
[null,"Armes à distance"]
[null,"Armes lourdes"]
[null,"Arts martiaux"]

{"sheet":"Espèce","index":13,"n_rows":42,"n_cols":8,"rows_kept":42,"cut":false,"hidden":false,"merged":[[27,0,34,0],[35,0,41,0],[2,0,13,0],[14,0,16,0],[17,0,20,0],[21,0,26,0]]}
["Domaine","Compétence","Changeforme","Humain","K'Rinn","Marionnettiste","Rith","Sshaad"]
["Affectés",null,{"$f":"COUNTIF(C3:C42,\"=\"&\"*\")","v":8},8,8,8,8,8]
["Interaction","Baratin",null,"x"]
[null,"Commandement",null,null,null,null,"x"]
[null,"Culture ()"]
[null,"Culture ()",null,null,null,null,null,"x"]
[null,"Enseignement"]
[null,"Investigation"]
[null,"Langue ()"]
[null,"Langue ()","Une langue des Figés","Une autre langue","Une autre langue","Langue autre espèce","Une autre langue","Une autre langue"]
[null,"Langue ()"]
[null,"Marchandage",null,null,"x"]
[null,"Persuasion",null,null,"x"]
[null,"Stratégie",null,null,null,null,"x"]
["Perception","Remarquer"]
[null,"Intuition",null,null,null,"x"]
[null,"Orientation ()","Milieu de naissance",null,null,"Milieu de jeunesse",null,"Milieu de jeunesse"]
["Dextérité","Déguisement","x",null,null,"x"]
[null,"Discrétion","x"]
[null,"Dissimulation","x"]
[null,"Illusion"]
["Physique","Pilotage ()",null,"Véhicules de surface","Véhicules de surface","Porteurs",null,"Véhicules aériens"]
[null,"Pilotage ()",null,null,null,null,null,"Autre type de véhicules"]
[null,"Grimper",null,"x",null,"x"]
[null,"Lancer"]
[null,"Nager","x"]
[null,"Sauter",null,null,null,null,"x"]
["Savoirs","Art/Artisanat ()"]
[null,"Art/Artisanat ()"]
[null,"Évaluer",null,"x"]
[null,"Jeu ()",null,null,"Spiraxy"]
[null,"Premiers soins"]
[null,"Technologie ()","Mécanique","Armements","Cybernétique","Génétique","Armements","Mécanique"]
[null,"Technologie ()","Bionique",null,null,"Bionique"]
[null,"Technologie ()"]
["Combat","Bagarre",null,"x",null,null,"x","x"]
[null,"Esquive",null,null,"x",null,null,"x"]
[null,"Parade",null,null,"x",null,"x"]
[null,"Armes de contact",null,"x",null,null,"x"]
[null,"Armes à distance"]
[null,"Armes lourdes"]
[null,"Arts martiaux"]

{"sheet":"Métiers","index":14,"n_rows":42,"n_cols":20,"rows_kept":42,"cut":false,"hidden":false,"merged":[[35,0,41,0],[2,0,13,0],[14,0,16,0],[17,0,20,0],[21,0,26,0],[27,0,34,0]]}
["Domaine","Compétence","Businessbeing","Marchand","Contrebandier","Arnaqueur","Policier","Détective","Journaliste","Voleur","Hacker","Soldat","Mercenaire","Officier","Reporter","Mécanicien","Pilote","Astrogateur","Chasseur d'épaves","Médecin"]
["Affectés",null,{"$f":"COUNTIF(C3:C42,\"=\"&\"*\")","v":10},10,10,10,10,10,10,10,10,10,{"$f":"COUNTIF(M3:M42,\"=\"&\"*\")","v":10},10,10,10,10,10,10,10]
["Interaction","Baratin","x","x",null,"x","x","x","x","x",null,null,null,null,"x",null,null,null,"x"]
[null,"Commandement",null,null,null,null,null,null,null,null,null,null,null,"x",null,null,"x",null,null,"x"]
[null,"Culture ()"]
[null,"Culture ()","Une au choix parmi\n(Bureaucratie,\nAffaires)","Une au choix parmi\n(Rue, Bureaucratie,\nSpatiens)","Une au choix parmi\n(Rue, Spatiens)","Une au choix parmi\n(Affaires, Bureaucratie)","Une au choix parmi\n(Affaires, Rue, Droit,\nBureaucratie)","Une au choix parmi\n(Affaires, Spatiens,\nBureaucratie, Rue)","Une au choix parmi\n(Affaires, Rue)","Rue","Hacking","Armée","Armée","Armée","Armée","Une au choix parmi\n(Rue, Bureaucratie,\nSpatiens)","Une au choix parmi\n(Rue, Armée,\nSpatiens)","Spatiens","Spatiens","Soignants"]
[null,"Enseignement",null,null,null,null,null,null,null,null,null,null,null,null,null,null,null,"x",null,"x"]
[null,"Investigation",null,null,null,null,"x","x","x",null,null,null,null,null,null,null,null,null,"x"]
[null,"Langue ()"]
[null,"Langue ()","Selon historique",null,null,"Selon historique",null,null,null,null,null,null,null,null,"Selon historique"]
[null,"Langue ()","Selon historique","Selon historique","Selon historique","Selon historique","Selon historique","Selon historique","Selon historique","Selon historique","Selon historique","Selon historique","Selon historique","Selon historique","Selon historique","Selon historique","Selon historique","Selon historique","Selon historique","Selon historique"]
[null,"Marchandage","x","x","x",null,null,null,null,null,null,null,"x",null,null,"x",null,null,"x"]
[null,"Persuasion","x",null,null,"x","x",null,"x",null,null,null,null,null,null,null,null,null,"x"]
[null,"Stratégie","x",null,null,null,null,null,null,null,null,null,null,"x",null,null,null,"x"]
["Perception","Remarquer",null,"x",null,null,"x","x","x","x","x","x",null,null,"x",null,null,null,null,"x"]
[null,"Intuition","x",null,null,null,null,null,"x",null,null,null,null,null,null,null,null,"x",null,"x"]
[null,"Orientation ()",null,null,null,null,null,null,null,null,null,"x",null,null,null,null,"Une au choix parmi\n(Espace, Mer, Planète)","Astrogation","Astrogation"]
["Dextérité","Déguisement",null,null,null,null,null,null,"x"]
[null,"Discrétion",null,"x",null,null,null,"x",null,"x","x",null,null,null,"x"]
[null,"Dissimulation",null,"x","x","x",null,null,null,"x",null,null,null,null,"x"]
[null,"Illusion"]
["Physique","Pilotage ()",null,null,"Transports spatiaux",null,null,null,null,null,null,null,null,"Véhicules de surface",null,null,"Une au choix parmi\n(Transports spatiaux,\nVéhicules de surface,\nExosquelettes,\nVéhicules aériens,\nVéhicules marins)","Transports spatiaux","Transports spatiaux"]
[null,"Pilotage ()",null,null,null,null,null,null,null,null,null,null,null,null,null,"Une au choix parmi\n(Transports spatiaux,\nVéhicules de surface,\nExosquelettes,\nVéhicules aériens,\nVéhicules marins)","Une au choix parmi\n(Transports spatiaux,\nVéhicules de surface,\nExosquelettes,\nVéhicules aériens,\nVéhicules marins)"]
[null,"Grimper"]
[null,"Lancer"]
[null,"Nager"]
[null,"Sauter"]
["Savoirs","Art/Artisanat ()",null,"Un au choix",null,"Falsification",null,"Serrurerie","Ecriture","Falsification","Falsification",null,null,null,"Ecriture","Falsification",null,null,null,"Soins"]
[null,"Art/Artisanat ()",null,null,null,null,null,null,null,"Serrurerie","Serrurerie"]
[null,"Évaluer","x","x","x","x",null,null,null,null,null,null,"x",null,null,null,null,null,"x"]
[null,"Jeu ()","Spiraxy","Spiraxy","Spiraxy","Un au choix"]
[null,"Premiers soins",null,null,null,null,"x",null,null,null,null,null,null,"x",null,null,null,null,null,"x"]
[null,"Technologie ()",null,null,"Mécanique",null,null,null,"Informatique",null,"Informatique",null,null,null,"Armements","Une au choix parmi\n(Mécanique, Bionique,\nElectronique, Armements)","Une au choix parmi\n(Mécanique, Bionique,\nElectronique, Armements)","Une au choix parmi\n(Mécanique, Electronique)","Senseurs","Médecine"]
[null,"Technologie ()",null,null,null,null,null,null,null,null,"Electronique",null,null,null,null,"Une au choix parmi\n(Mécanique, Bionique,\nElectronique, Armements)",null,null,null,"Bionique"]
[null,"Technologie ()",null,null,null,null,null,null,null,null,"Bionique",null,null,null,null,"Une au choix parmi\n(Mécanique, Bionique,\nElectronique, Armements)"]
["Combat","Bagarre",null,null,"x",null,"x","x",null,"x","x","x","x","x",null,"x","x","x"]
[null,"Esquive",null,null,"x","x",null,"x",null,null,null,"x","x","x","x","x","x","x"]
[null,"Parade",null,null,null,null,null,null,null,null,null,"x","x","x"]
[null,"Armes de contact",null,null,null,null,"x","x",null,"x",null,"x","x"]
[null,"Armes à distance",null,null,null,null,"x",null,null,null,null,"x","x"]
[null,"Armes lourdes",null,null,null,null,null,null,null,null,null,"x","x",null,null,null,"x"]
[null,"Arts martiaux",null,null,null,null,null,null,null,null,null,null,null,"x"]

{"sheet":"Liste-Contacts","index":15,"n_rows":4,"n_cols":7,"rows_kept":4,"cut":false,"hidden":false,"merged":[[0,3,0,6]]}
["Nom","Points","Effets en jeu","Contact"]
[null,null,null,"Espèce","Métier","Lieu","Détails"]
["Rilathn d’rih Arlinal",50,"Prix réduits sur les pièces et les vaisseaux\nInformations sur les Adrims Libres, les contrebandiers\net les pirates\nMotivations : Adrims Libres, combattre les Gham Garri, indépendance des Hoshi no Hekka, loyauté aux Capitaines des Forteresses","Rith","Marchand","Eden High","Adrim exfiltré"]
["Chang-Li Liang",50,"Pourra être contacté dans le système Nouvelle Hong-Kong\nInformations sur le Conseil K'Rinn, l'Alliance Planètariste, les contrebandiers et pirates locaux\nMotivations : argent et justice, mais refusera d'agir contre le clan Pei","Humaine","Détective","Nouvelle Hong-Kong","Affiliée au clan Pei"]

{"sheet":"Liste-Equipement","index":16,"n_rows":12,"n_cols":12,"rows_kept":12,"cut":false,"hidden":false,"merged":[[0,7,0,11]]}
["Nom","Points","Description (1 ligne)","Effets en jeu","Prix","Implant ?","Arme ?","Arme"]
[null,null,null,null,null,null,null,"Comp.","Cp/Rnd","Dégâts","Munitions","PA"]
["Téléphone crânien",2,"Connexion discrète à l'infosphère publique","10% de risque de se faire détecter si quelqu'un écoute\nRisque monte à 30% si tentative de l'utiliser pour hacker",null,"x"]
["Port mémoire",5,"Port pour aiguilles de données","Permet de connecter des aiguilles de données",null,"x"]
["Doigt modulaire",15,"Phalange retirée, remplaçable par un module","Livrée avec module neutre imitant un vrai doigt",null,"x"]
["Scanner portatif",10,"Sonde un objet, +30% Evaluer/Remarquer","Compter 1 mn complète par jet"]
["Mémoire 10 To",1,"Aiguille de données"]
["Module Gaz",10,"Doigt-Gaz (Bagarre/Discrétion)"]
["Rech. Gaz Influence",2,"Si respiré, -20% contre toute influence"]
["Rech. Gaz Soporifique",2,"Si respiré, CONstitution contre sommeil"]
["Bâton de combat",10,"Bâton de 2m, se replie en 5cm",null,null,null,"x","C",1,"1D8",null,12]
["Coutelas camouflé",5,"Discret, 5% de détection",null,null,null,"x","C",1,"1D3+1",null,3]

{"sheet":"Carac. Min","index":17,"n_rows":16,"n_cols":8,"rows_kept":16,"cut":false,"hidden":false,"merged":[]}
["Caractéristique","2D4 (2-8)","Changeforme","Humain","K'Rinn","Marionnettiste","Rith","Sshaad"]
["TAIlle",2,{"$f":"ROUNDUP(8+$B2*1.5,0)","v":11},{"$f":"8+$B2*1","v":10},{"$f":"6+$B2*1","v":8},{"$f":"ROUNDUP(1+$B2/2,0)","v":2},{"$f":"17+$B2*1","v":19},{"$f":"9+$B2*1","v":11}]
["APParence",2,{"$f":"($B3+7)*1","v":9},9,9,9,9,9]
["DEXtérité",2,{"$f":"($B4+7)*1","v":9},{"$f":"($B4+7)*1","v":9},{"$f":"($B4+10)*1","v":12},{"$f":"($B4+8)*1","v":10},{"$f":"($B4+4)*1","v":6},{"$f":"($B4+4)*1","v":6}]
["FORce",2,{"$f":"($B5+7)*1","v":9},{"$f":"($B5+10)*1","v":12},{"$f":"($B5+4)*1","v":6},{"$f":"ROUNDUP(($B5+2)/2,0)","v":2},{"$f":"($B5+16)*1","v":18},{"$f":"($B5+10)*1","v":12}]
["CONstitution",2,{"$f":"($B6+7)*1","v":9},{"$f":"($B6+4)*1","v":6},{"$f":"($B6+4)*1","v":6},{"$f":"($B6+4)*1","v":6},{"$f":"($B6+10)*1","v":12},{"$f":"($B6+10)*1","v":12}]
["INTelligence",2,{"$f":"($B7+7)*1","v":9},{"$f":"($B7+10)*1","v":12},{"$f":"($B7+10)*1","v":12},{"$f":"($B7+13)*1","v":15},{"$f":"($B7+7)*1","v":9},{"$f":"($B7+5)*1","v":7}]
["PERception",2,{"$f":"($B8+8)*1","v":10},{"$f":"($B8+7)*1","v":9},{"$f":"($B8+7)*1","v":9},{"$f":"($B8+10)*1","v":12},{"$f":"($B8+8)*1","v":10},{"$f":"($B8+11)*1","v":13}]
["VOLonté",2,{"$f":"($B9+7)*1","v":9},{"$f":"($B9+4)*1","v":6},{"$f":"($B9+7)*1","v":9},{"$f":"($B9+13)*1","v":15},{"$f":"($B9+10)*1","v":12},{"$f":"($B9+10)*1","v":12}]
[]
["Points de Vie",null,{"$f":"ROUNDUP((C2+C6)/2,0)","v":10},8,7,4,16,12]
["Initiative",null,{"$f":"C4+10","v":19},19,22,20,16,16]
["Bonus aux dégâts",null,{"$f":"LOOKUP(C5+C2,{2;13;17;25;33;41;57;100},{\"-1D6\";\"-1D4\";\"Aucun\";\"+1D4\";\"+1D6\";\"+2D6\";\"+3D6\"})","v":"Aucun"},{"$f":"LOOKUP(D5+D2,{2;13;17;25;33;41;57;100},{\"-1D6\";\"-1D4\";\"Aucun\";\"+1D4\";\"+1D6\";\"+2D6\";\"+3D6\"})","v":"Aucun"},{"$f":"LOOKUP(E5+E2,{2;13;17;25;33;41;57;100},{\"-1D6\";\"-1D4\";\"Aucun\";\"+1D4\";\"+1D6\";\"+2D6\";\"+3D6\"})","v":"-1D4"},{"$f":"LOOKUP(F5+F2,{2;13;17;25;33;41;57;100},{\"-1D6\";\"-1D4\";\"Aucun\";\"+1D4\";\"+1D6\";\"+2D6\";\"+3D6\"})","v":"-1D6"},{"$f":"LOOKUP(G5+G2,{2;13;17;25;33;41;57;100},{\"-1D6\";\"-1D4\";\"Aucun\";\"+1D4\";\"+1D6\";\"+2D6\";\"+3D6\"})","v":"+1D6"},{"$f":"LOOKUP(H5+H2,{2;13;17;25;33;41;57;100},{\"-1D6\";\"-1D4\";\"Aucun\";\"+1D4\";\"+1D6\";\"+2D6\";\"+3D6\"})","v":"Aucun"}]
["Armes naturelles",null,"1D3 ","1D3 ","1D3 ","1D2","1D4","1D4"]
["Armure naturelle",null,1,1,1,0,2,2]
["Masse (kg)",null,{"$f":"0.5*C2^2","v":60.5},{"$f":"0.5*D2^2","v":50},32,2,180.5,60.5]

{"sheet":"Carac. Moy","index":18,"n_rows":16,"n_cols":8,"rows_kept":16,"cut":false,"hidden":false,"merged":[]}
["Caractéristique","2D4 (2-8)","Changeforme","Humain","K'Rinn","Marionnettiste","Rith","Sshaad"]
["TAIlle",{"$f":"(8+2)/2","v":5},{"$f":"ROUNDUP(8+$B2*1.5,0)","v":16},{"$f":"8+$B2*1","v":13},{"$f":"6+$B2*1","v":11},{"$f":"ROUNDUP(1+$B2/2,0)","v":4},{"$f":"17+$B2*1","v":22},{"$f":"9+$B2*1","v":14}]
["APParence",{"$f":"(8+2)/2","v":5},{"$f":"($B3+7)*1","v":12},12,12,12,12,12]
["DEXtérité",5,{"$f":"($B4+7)*1","v":12},{"$f":"($B4+7)*1","v":12},{"$f":"($B4+10)*1","v":15},{"$f":"($B4+8)*1","v":13},{"$f":"($B4+4)*1","v":9},{"$f":"($B4+4)*1","v":9}]
["FORce",5,{"$f":"($B5+7)*1","v":12},{"$f":"($B5+10)*1","v":15},{"$f":"($B5+4)*1","v":9},{"$f":"ROUNDUP(($B5+2)/2,0)","v":4},{"$f":"($B5+16)*1","v":21},{"$f":"($B5+10)*1","v":15}]
["CONstitution",5,{"$f":"($B6+7)*1","v":12},{"$f":"($B6+4)*1","v":9},{"$f":"($B6+4)*1","v":9},{"$f":"($B6+4)*1","v":9},{"$f":"($B6+10)*1","v":15},{"$f":"($B6+10)*1","v":15}]
["INTelligence",5,{"$f":"($B7+7)*1","v":12},{"$f":"($B7+10)*1","v":15},{"$f":"($B7+10)*1","v":15},{"$f":"($B7+13)*1","v":18},{"$f":"($B7+7)*1","v":12},{"$f":"($B7+5)*1","v":10}]
["PERception",5,{"$f":"($B8+8)*1","v":13},{"$f":"($B8+7)*1","v":12},{"$f":"($B8+7)*1","v":12},{"$f":"($B8+10)*1","v":15},{"$f":"($B8+8)*1","v":13},{"$f":"($B8+11)*1","v":16}]
["VOLonté",5,{"$f":"($B9+7)*1","v":12},{"$f":"($B9+4)*1","v":9},{"$f":"($B9+7)*1","v":12},{"$f":"($B9+13)*1","v":18},{"$f":"($B9+10)*1","v":15},{"$f":"($B9+10)*1","v":15}]
[]
["Points de Vie",null,{"$f":"ROUNDUP((C2+C6)/2,0)","v":14},11,10,7,19,15]
["Initiative",null,{"$f":"C4+10","v":22},22,25,23,19,19]
["Bonus aux dégâts",null,{"$f":"LOOKUP(C5+C2,{2;13;17;25;33;41;57;100},{\"-1D6\";\"-1D4\";\"Aucun\";\"+1D4\";\"+1D6\";\"+2D6\";\"+3D6\"})","v":"+1D4"},{"$f":"LOOKUP(D5+D2,{2;13;17;25;33;41;57;100},{\"-1D6\";\"-1D4\";\"Aucun\";\"+1D4\";\"+1D6\";\"+2D6\";\"+3D6\"})","v":"+1D4"},{"$f":"LOOKUP(E5+E2,{2;13;17;25;33;41;57;100},{\"-1D6\";\"-1D4\";\"Aucun\";\"+1D4\";\"+1D6\";\"+2D6\";\"+3D6\"})","v":"Aucun"},{"$f":"LOOKUP(F5+F2,{2;13;17;25;33;41;57;100},{\"-1D6\";\"-1D4\";\"Aucun\";\"+1D4\";\"+1D6\";\"+2D6\";\"+3D6\"})","v":"-1D6"},{"$f":"LOOKUP(G5+G2,{2;13;17;25;33;41;57;100},{\"-1D6\";\"-1D4\";\"Aucun\";\"+1D4\";\"+1D6\";\"+2D6\";\"+3D6\"})","v":"+2D6"},{"$f":"LOOKUP(H5+H2,{2;13;17;25;33;41;57;100},{\"-1D6\";\"-1D4\";\"Aucun\";\"+1D4\";\"+1D6\";\"+2D6\";\"+3D6\"})","v":"+1D4"}]
["Armes naturelles",null,"1D3 ","1D3 ","1D3 ","1D2","1D4","1D4"]
["Armure naturelle",null,1,1,1,0,2,2]
["Masse (kg)",null,{"$f":"0.5*C2^2","v":128},{"$f":"0.5*D2^2","v":84.5},60.5,8,242,98]

{"sheet":"Carac. Max","index":19,"n_rows":16,"n_cols":8,"rows_kept":16,"cut":false,"hidden":false,"merged":[]}
["Caractéristique","2D4 (2-8)","Changeforme","Humain","K'Rinn","Marionnettiste","Rith","Sshaad"]
["TAIlle",8,{"$f":"ROUNDUP(8+$B2*1.5,0)","v":20},{"$f":"8+$B2*1","v":16},{"$f":"6+$B2*1","v":14},{"$f":"ROUNDUP(1+$B2/2,0)","v":5},{"$f":"17+$B2*1","v":25},{"$f":"9+$B2*1","v":17}]
["APParence",8,{"$f":"($B3+7)*1","v":15},15,15,15,15,15]
["DEXtérité",8,{"$f":"($B4+7)*1","v":15},{"$f":"($B4+7)*1","v":15},{"$f":"($B4+10)*1","v":18},{"$f":"($B4+8)*1","v":16},{"$f":"($B4+4)*1","v":12},{"$f":"($B4+4)*1","v":12}]
["FORce",8,{"$f":"($B5+7)*1","v":15},{"$f":"($B5+10)*1","v":18},{"$f":"($B5+4)*1","v":12},{"$f":"ROUNDUP(($B5+2)/2,0)","v":5},{"$f":"($B5+16)*1","v":24},{"$f":"($B5+10)*1","v":18}]
["CONstitution",8,{"$f":"($B6+7)*1","v":15},{"$f":"($B6+4)*1","v":12},{"$f":"($B6+4)*1","v":12},{"$f":"($B6+4)*1","v":12},{"$f":"($B6+10)*1","v":18},{"$f":"($B6+10)*1","v":18}]
["INTelligence",8,{"$f":"($B7+7)*1","v":15},{"$f":"($B7+10)*1","v":18},{"$f":"($B7+10)*1","v":18},{"$f":"($B7+13)*1","v":21},{"$f":"($B7+7)*1","v":15},{"$f":"($B7+5)*1","v":13}]
["PERception",8,{"$f":"($B8+8)*1","v":16},{"$f":"($B8+7)*1","v":15},{"$f":"($B8+7)*1","v":15},{"$f":"($B8+10)*1","v":18},{"$f":"($B8+8)*1","v":16},{"$f":"($B8+11)*1","v":19}]
["VOLonté",8,{"$f":"($B9+7)*1","v":15},{"$f":"($B9+4)*1","v":12},{"$f":"($B9+7)*1","v":15},{"$f":"($B9+13)*1","v":21},{"$f":"($B9+10)*1","v":18},{"$f":"($B9+10)*1","v":18}]
[]
["Points de Vie",null,{"$f":"ROUNDUP((C2+C6)/2,0)","v":18},14,13,9,22,18]
["Initiative",null,{"$f":"C4+10","v":25},25,28,26,22,22]
["Bonus aux dégâts",null,{"$f":"LOOKUP(C5+C2,{2;13;17;25;33;41;57;100},{\"-1D6\";\"-1D4\";\"Aucun\";\"+1D4\";\"+1D6\";\"+2D6\";\"+3D6\"})","v":"+1D6"},{"$f":"LOOKUP(D5+D2,{2;13;17;25;33;41;57;100},{\"-1D6\";\"-1D4\";\"Aucun\";\"+1D4\";\"+1D6\";\"+2D6\";\"+3D6\"})","v":"+1D6"},{"$f":"LOOKUP(E5+E2,{2;13;17;25;33;41;57;100},{\"-1D6\";\"-1D4\";\"Aucun\";\"+1D4\";\"+1D6\";\"+2D6\";\"+3D6\"})","v":"+1D4"},{"$f":"LOOKUP(F5+F2,{2;13;17;25;33;41;57;100},{\"-1D6\";\"-1D4\";\"Aucun\";\"+1D4\";\"+1D6\";\"+2D6\";\"+3D6\"})","v":"-1D6"},{"$f":"LOOKUP(G5+G2,{2;13;17;25;33;41;57;100},{\"-1D6\";\"-1D4\";\"Aucun\";\"+1D4\";\"+1D6\";\"+2D6\";\"+3D6\"})","v":"+2D6"},{"$f":"LOOKUP(H5+H2,{2;13;17;25;33;41;57;100},{\"-1D6\";\"-1D4\";\"Aucun\";\"+1D4\";\"+1D6\";\"+2D6\";\"+3D6\"})","v":"+1D6"}]
["Armes naturelles",null,"1D3 ","1D3 ","1D3 ","1D2","1D4","1D4"]
["Armure naturelle",null,1,1,1,0,2,2]
["Masse (kg)",null,{"$f":"0.5*C2^2","v":200},{"$f":"0.5*D2^2","v":128},98,12.5,312.5,144.5]